{"text_format":"1","workbook":"xlsx","n_sheets":5,"sheets":["EINFÜHRUNG","WIRKUNGSBEURTEILUNG","ZUSATZFRAGEN","AUSWERTUNG vollständig","AUSWERTUNG Zusammenfassung"],"not_rendered":{"charts":2,"images":26,"macros":1,"external_links":0,"defined_names":7,"comments":2,"pivot_tables":0},"unopened":[],"bounds":{"document_bytes":16777216,"sheet_cells":100000,"rows_first":2000,"rows_last":500,"rows_between":2000,"halvings":0,"cell_chars":16384,"cell_head_chars":4096},"cells_cut":0,"cells_raw":0,"read":"whole","date_system":"1900"}

{"sheet":"EINFÜHRUNG","index":0,"n_rows":58,"n_cols":2,"rows_kept":58,"cut":false,"hidden":false,"merged":[]}
[]
[null,"Checkliste «Zielbereiche der Nachhaltigen Entwicklung»"]
[]
[]
[]
[]
[]
[]
[]
[]
[]
[]
[]
[]
[]
[]
[]
[]
[]
[]
[]
[]
[]
[]
[]
[]
[]
[]
[]
[]
[]
[]
[]
[]
[]
[]
[]
[]
[]
[]
[]
[]
[]
[]
[]
[]
[]
[]
[]
[]
[]
[]
[]
[null,"info.aue@bve.be.ch"]
[null,"http://www.be.ch/ne"]
[]
[]
[null,"AUE 2012"]

{"sheet":"WIRKUNGSBEURTEILUNG","index":1,"n_rows":93,"n_cols":15,"rows_kept":93,"cut":false,"hidden":false,"merged":[[93,1,98,10],[67,1,67,2],[69,1,69,2],[71,1,71,2],[73,1,73,2],[89,1,89,2],[87,1,87,2],[75,1,75,2],[77,1,77,2],[81,1,81,2],[83,1,83,2],[85,1,85,2],[79,1,79,2],[90,1,90,2],[68,4,69,5],[70,4,71,5],[68,6,69,6],[70,8,71,8],[70,9,71,9],[70,7,71,7],[70,6,71,6],[72,6,73,6],[72,7,73,7],[72,8,73,8],[42,1,42,2],[44,1,44,2],[60,1,60,2],[62,1,62,2],[48,1,48,2],[50,1,50,2],[46,1,46,2],[63,1,63,2],[25,1,25,2],[33,1,33,2],[35,1,35,2],[40,1,40,2],[34,4,35,5],[58,1,58,2],[52,1,52,2],[54,1,54,2],[56,1,56,2],[17,1,17,2],[74,4,75,5],[82,4,83,5],[84,4,85,5],[19,1,19,2],[23,1,23,2],[76,4,77,5],[78,4,79,5],[28,4,29,5],[32,4,33,5],[39,4,40,5],[41,4,42,5],[43,4,44,5],[45,4,46,5],[47,4,48,5],[49,4,50,5],[51,4,52,5],[53,4,54,5],[59,4,60,5],[27,1,27,2],[21,1,21,2],[29,1,29,2],[31,1,31,2],[16,4,17,5],[3,1,3,2],[14,7,15,7],[14,8,15,8],[12,4,13,5],[14,4,15,5],[4,1,4,2],[5,1,5,2],[9,1,9,4],[7,1,7,2],[13,1,13,2],[22,8,23,8],[14,11,15,11],[12,11,13,11],[36,1,36,2],[12,6,13,6],[12,7,13,7],[12,8,13,8],[12,9,13,9],[12,10,13,10],[14,6,15,6],[16,11,17,11],[18,11,19,11],[30,4,31,5],[20,11,21,11],[22,11,23,11],[24,11,25,11],[26,11,27,11],[28,11,29,11],[30,11,31,11],[32,11,33,11],[34,11,35,11],[20,10,21,10],[22,6,23,6],[22,7,23,7],[15,1,15,2],[86,4,87,5],[14,9,15,9],[16,10,17,10],[16,8,17,8],[80,4,81,5],[68,7,69,7],[68,8,69,8],[68,9,69,9],[68,10,69,10],[26,4,27,5],[18,4,19,5],[20,4,21,5],[22,4,23,5],[24,4,25,5],[18,6,19,6],[18,7,19,7],[18,8,19,8],[18,9,19,9],[18,10,19,10],[16,9,17,9],[16,6,17,6],[16,7,17,7],[72,4,73,5],[14,10,15,10],[22,9,23,9],[22,10,23,10],[20,6,21,6],[20,7,21,7],[20,8,21,8],[20,9,21,9],[24,10,25,10],[26,6,27,6],[26,7,27,7],[26,8,27,8],[26,9,27,9],[26,10,27,10],[24,6,25,6],[24,7,25,7],[24,8,25,8],[24,9,25,9],[28,10,29,10],[30,6,31,6],[30,7,31,7],[30,8,31,8],[30,9,31,9],[30,10,31,10],[28,6,29,6],[28,7,29,7],[28,8,29,8],[28,9,29,9],[32,10,33,10],[34,6,35,6],[34,7,35,7],[34,8,35,8],[34,9,35,9],[34,10,35,10],[32,6,33,6],[32,7,33,7],[32,8,33,8],[32,9,33,9],[39,8,40,8],[39,9,40,9],[39,10,40,10],[55,4,56,5],[57,7,58,7],[57,8,58,8],[57,9,58,9],[57,10,58,10],[57,4,58,5],[41,6,42,6],[41,7,42,7],[41,8,42,8],[43,10,44,10],[41,9,42,9],[45,10,46,10],[47,6,48,6],[47,7,48,7],[47,8,48,8],[47,9,48,9],[47,10,48,10],[45,6,46,6],[45,7,46,7],[45,8,46,8],[39,6,40,6],[57,6,58,6],[59,6,60,6],[61,6,62,6],[59,7,60,7],[59,8,60,8],[59,9,60,9],[39,11,40,11],[41,11,42,11],[43,11,44,11],[45,11,46,11],[47,11,48,11],[51,11,52,11],[49,11,50,11],[53,11,54,11],[55,11,56,11],[57,11,58,11],[59,11,60,11],[61,11,62,11],[41,10,42,10],[43,6,44,6],[43,7,44,7],[43,8,44,8],[43,9,44,9],[39,7,40,7],[45,9,46,9],[49,10,50,10],[51,6,52,6],[51,7,52,7],[51,8,52,8],[51,9,52,9],[51,10,52,10],[49,6,50,6],[49,7,50,7],[49,8,50,8],[49,9,50,9],[53,9,54,9],[53,10,54,10],[55,6,56,6],[55,7,56,7],[55,8,56,8],[55,9,56,9],[55,10,56,10],[53,6,54,6],[53,7,54,7],[53,8,54,8],[61,10,62,10],[70,10,71,10],[72,10,73,10],[74,10,75,10],[76,10,77,10],[78,10,79,10],[80,10,81,10],[59,10,60,10],[61,7,62,7],[61,8,62,8],[61,9,62,9],[66,7,67,7],[66,8,67,8],[66,9,67,9],[63,4,64,10],[66,10,67,10],[66,4,67,5],[66,6,67,6],[61,4,62,5],[74,9,75,9],[84,11,85,11],[86,11,87,11],[88,11,89,11],[66,11,67,11],[68,11,69,11],[70,11,71,11],[72,11,73,11],[74,11,75,11],[76,11,77,11],[78,11,79,11],[80,11,81,11],[82,11,83,11],[35,12,35,13],[36,12,36,13],[37,12,37,13],[63,12,63,13],[62,12,62,13],[64,12,64,13],[86,9,87,9],[82,10,83,10],[84,6,85,6],[84,7,85,7],[84,8,85,8],[84,9,85,9],[84,10,85,10],[82,6,83,6],[82,7,83,7],[82,8,83,8],[82,9,83,9],[78,6,79,6],[78,7,79,7],[78,8,79,8],[78,9,79,9],[80,6,81,6],[80,7,81,7],[80,8,81,8],[90,12,90,13],[91,12,91,13],[89,12,89,13],[86,6,87,6],[86,7,87,7],[86,8,87,8],[90,4,91,10],[88,4,89,5],[36,4,37,10],[86,10,87,10],[88,6,89,6],[88,7,89,7],[88,8,89,8],[88,9,89,9],[88,10,89,10],[80,9,81,9],[72,9,73,9],[76,6,77,6],[76,7,77,7],[76,8,77,8],[76,9,77,9],[74,6,75,6],[74,7,75,7],[74,8,75,8]]}
[]
[null,"Checkliste Zielbereiche: Wirkungsbeurteilung",null,null,null,null,-2,-1,0,1,2]
[null,"Name des Vorhabens:",null,null,"Räumlicher / zeitlicher Betrachtungshorizont:"]
[]
[null,"Planungsstand des Vorhabens (Version):",null,null,"Vergleichsbasis:"]
[]
[null,"Beurteilung durchgeführt von:",null,null,"Datum:"]
[]
[null,"Bemerkungen:"]
[]
[null,"Zielbereich",null,null,"Zu erwartende Wirkungen des Vorhabens",null,-2,-1,0,1,2]
[null,"UMWELT"]
[null,"Biodiversität",null,null,null,null,null,null,null,null,null,{"$f":"IF(G13=\"x\",-2,(IF(H13=\"x\",-1,(IF(I13=\"x\",0,(IF(J13=\"x\",1,(IF(K13=\"x\",2,\"EINGABE?\")))))))))","v":"EINGABE?"}]
[null,"Artenvielfalt, Vielfalt der Lebensräume für Tiere und Pflanzen"]
[null,"Natur und Landschaft",null,null,null,null,null,null,null,null,null,{"$f":"IF(G15=\"x\",-2,(IF(H15=\"x\",-1,(IF(I15=\"x\",0,(IF(J15=\"x\",1,(IF(K15=\"x\",2,\"EINGABE?\")))))))))","v":"EINGABE?"}]
[null,"Ökologisch wertvolle Landschafts- und Naturräume, Vernetzung, Schutzbestimmungen"]
[null,"Energieverbrauch",null,null,null,null,null,null,null,null,null,{"$f":"IF(G17=\"x\",-2,(IF(H17=\"x\",-1,(IF(I17=\"x\",0,(IF(J17=\"x\",1,(IF(K17=\"x\",2,\"EINGABE?\")))))))))","v":"EINGABE?"}]
[null,"Gesamter Energieverbrauch; auch graue Energie (Energie für Herstellung, Transport und Entsorgung von Produkten)"]
[null,"Energiequalität",null,null,null,null,null,null,null,null,null,{"$f":"IF(G19=\"x\",-2,(IF(H19=\"x\",-1,(IF(I19=\"x\",0,(IF(J19=\"x\",1,(IF(K19=\"x\",2,\"EINGABE?\")))))))))","v":"EINGABE?"}]
[null,"Art der verwendeten Energieträger (Anteil erneuerbare, einheimische, CO2-neutrale Energieträger)"]
[null,"Klima",null,null,null,null,null,null,null,null,null,{"$f":"IF(G21=\"x\",-2,(IF(H21=\"x\",-1,(IF(I21=\"x\",0,(IF(J21=\"x\",1,(IF(K21=\"x\",2,\"EINGABE?\")))))))))","v":"EINGABE?"}]
[null,"Beeinflussung durch Emission von Treibhausgasen (CO2, Methan, etc.)"]
[null,"Rohstoffverbrauch",null,null,null,null,null,null,null,null,null,{"$f":"IF(G23=\"x\",-2,(IF(H23=\"x\",-1,(IF(I23=\"x\",0,(IF(J23=\"x\",1,(IF(K23=\"x\",2,\"EINGABE?\")))))))))","v":"EINGABE?"}]
[null,"Verbrauch von Rohstoffen und Materialien (z.B. Einsparungen durch Vermeidung von Abfällen, Verwendung von rezyklierten Materialien)"]
[null,"Rohstoffqualität",null,null,null,null,null,null,null,null,null,{"$f":"IF(G25=\"x\",-2,(IF(H25=\"x\",-1,(IF(I25=\"x\",0,(IF(J25=\"x\",1,(IF(K25=\"x\",2,\"EINGABE?\")))))))))","v":"EINGABE?"}]
[null,"Art und Herkunft von Rohstoffen und Materialien (z.B. erneuerbar, einheimisch, rezyklierbar, umwelt- und gesundheitsschonend)"]
[null,"Wasserhaushalt",null,null,null,null,null,null,null,null,null,{"$f":"IF(G27=\"x\",-2,(IF(H27=\"x\",-1,(IF(I27=\"x\",0,(IF(J27=\"x\",1,(IF(K27=\"x\",2,\"EINGABE?\")))))))))","v":"EINGABE?"}]
[null,"Natürlicher Wasserhaushalt (Beeinträchtigung durch Bodenversiegelung, Verbauungen, Wasserverbrauch)"]
[null,"Wasserqualität",null,null,null,null,null,null,null,null,null,{"$f":"IF(G29=\"x\",-2,(IF(H29=\"x\",-1,(IF(I29=\"x\",0,(IF(J29=\"x\",1,(IF(K29=\"x\",2,\"EINGABE?\")))))))))","v":"EINGABE?"}]
[null,"Qualität von Grundwasser und Oberflächengewässern"]
[null,"Bodenverbrauch",null,null,null,null,null,null,null,null,null,{"$f":"IF(G31=\"x\",-2,(IF(H31=\"x\",-1,(IF(I31=\"x\",0,(IF(J31=\"x\",1,(IF(K31=\"x\",2,\"EINGABE?\")))))))))","v":"EINGABE?"}]
[null,"Verbrauch durch Bebauung und Versiegelung (Siedlungen, Strassen)"]
[null,"Bodenqualität",null,null,null,null,null,null,null,null,null,{"$f":"IF(G33=\"x\",-2,(IF(H33=\"x\",-1,(IF(I33=\"x\",0,(IF(J33=\"x\",1,(IF(K33=\"x\",2,\"EINGABE?\")))))))))","v":"EINGABE?"}]
[null,"Schadstoffbelastung, Bodenverdichtung, Bodenerosion"]
[null,"Luftqualität",null,null,null,null,null,null,null,null,null,{"$f":"IF(G35=\"x\",-2,(IF(H35=\"x\",-1,(IF(I35=\"x\",0,(IF(J35=\"x\",1,(IF(K35=\"x\",2,\"EINGABE?\")))))))))","v":"EINGABE?"}]
[null,"Belastung durch Luftschadstoffe, z.B. Ozon, Stickoxide, Feinstaub ",null,null,null,null,null,null,null,null,null,null,"Eingabekontrolle Umwelt:"]
[null,"Fazit Umwelt\n(Zusammenfassung der Wirkungen, offene Fragen und Unsicherheiten etc.)",null,null,null,null,null,null,null,null,null,null,{"$f":"IF(COUNTIF(D13:E36,\"\")>36,\"Bitte für jeden Zielbereich die Wirkung beschreiben\",\"ok\")","v":"Bitte für jeden Zielbereich die Wirkung beschreiben"}]
[null,null,null,null,null,null,null,null,null,null,null,null,{"$f":"IF(COUNTIF(F13:J36,\"x\")>12,\"Bitte jeweils nur einen Wert ankreuzen.\",IF(COUNTIF(F13:J36,\"x\")<12,\"Bitte für jeden Zielbereich einen Wert ankreuzen\",\"\"))","v":"Bitte für jeden Zielbereich einen Wert ankreuzen"},null,{"$f":"IF(COUNTIF(G13:K36,\"x\")>12,\"f\",IF(COUNTIF(G13:K36,\"x\")<12,\"f\",\"ok\"))","v":"f"}]
[null,"WIRTSCHAFT"]
[null,"Einkommen",null,null,null,null,null,null,null,null,null,{"$f":"(IF(G40=\"x\",-2,(IF(H40=\"x\",-1,(IF(I40=\"x\",0,(IF(J40=\"x\",1,(IF(K40=\"x\",2,\"EINGABE?\"))))))))))","v":"EINGABE?"}]
[null,"Volkseinkommen, Einkommen der privaten Haushalte"]
[null,"Lebenskosten ",null,null,null,null,null,null,null,null,null,{"$f":"(IF(G42=\"x\",-2,(IF(H42=\"x\",-1,(IF(I42=\"x\",0,(IF(J42=\"x\",1,(IF(K42=\"x\",2,\"EINGABE?\"))))))))))","v":"EINGABE?"}]
[null,"Kosten von Konsumgütern, Wohnen, Versicherungen und sonstigen Dienstleistungen (in Relation zum verfügbaren Einkommen)"]
[null,"Arbeitsmarkt",null,null,null,null,null,null,null,null,null,{"$f":"(IF(G44=\"x\",-2,(IF(H44=\"x\",-1,(IF(I44=\"x\",0,(IF(J44=\"x\",1,(IF(K44=\"x\",2,\"EINGABE?\"))))))))))","v":"EINGABE?"}]
[null,"Arbeitsplätze, Arbeitslosigkeit, Erwerbsquote"]
[null,"Investitionen",null,null,null,null,null,null,null,null,null,{"$f":"(IF(G46=\"x\",-2,(IF(H46=\"x\",-1,(IF(I46=\"x\",0,(IF(J46=\"x\",1,(IF(K46=\"x\",2,\"EINGABE?\"))))))))))","v":"EINGABE?"}]
[null,"Private oder öffentliche Investitionen in das Realkapital (z.B. Infrastrukturanlagen) oder in das Humankapital (z.B. Bildung)"]
[null,"Kostenwahrheit ",null,null,null,null,null,null,null,null,null,{"$f":"(IF(G48=\"x\",-2,(IF(H48=\"x\",-1,(IF(I48=\"x\",0,(IF(J48=\"x\",1,(IF(K48=\"x\",2,\"EINGABE?\"))))))))))","v":"EINGABE?"}]
[null,"Internalisierung von sozialen und ökologischen Kosten über das Verursacherprinzip (z.B. durch verursachergerechte Gebühren)"]
[null,"Ressourceneffizienz  ",null,null,null,null,null,null,null,null,null,{"$f":"(IF(G50=\"x\",-2,(IF(H50=\"x\",-1,(IF(I50=\"x\",0,(IF(J50=\"x\",1,(IF(K50=\"x\",2,\"EINGABE?\"))))))))))","v":"EINGABE?"}]
[null,"Effizienter Einsatz von natürlichen, finanziellen und Humanressourcen (z.B. durch effiziente Abläufe und Verfahren), Nutzung von Synergien, Entkoppelung des Wachstums vom Ressourcenverbrauch"]
[null,"Innovationen",null,null,null,null,null,null,null,null,null,{"$f":"(IF(G52=\"x\",-2,(IF(H52=\"x\",-1,(IF(I52=\"x\",0,(IF(J52=\"x\",1,(IF(K52=\"x\",2,\"EINGABE?\"))))))))))","v":"EINGABE?"}]
[null,"Innovationskraft und Anpassungsfähigkeit der Wirtschaft, innovative Technologien und Produkte"]
[null,"Wirtschaftsstruktur",null,null,null,null,null,null,null,null,null,{"$f":"(IF(G54=\"x\",-2,(IF(H54=\"x\",-1,(IF(I54=\"x\",0,(IF(J54=\"x\",1,(IF(K54=\"x\",2,\"EINGABE?\"))))))))))","v":"EINGABE?"}]
[null,"Standortattraktivität, Nutzung der regionalen Stärken, Branchenstruktur (Branchenvielfalt, Anteil wertschöpfungsstarker Branchen etc.)"]
[null,"Know-how",null,null,null,null,null,null,null,null,null,{"$f":"(IF(G56=\"x\",-2,(IF(H56=\"x\",-1,(IF(I56=\"x\",0,(IF(J56=\"x\",1,(IF(K56=\"x\",2,\"EINGABE?\"))))))))))","v":"EINGABE?"}]
[null,"Berufliche Qualifikation der Arbeitskräfte, Wissenstransfer, Forschung und Entwicklung"]
[null,"Öffentlicher Haushalt",null,null,null,null,null,null,null,null,null,{"$f":"(IF(G58=\"x\",-2,(IF(H58=\"x\",-1,(IF(I58=\"x\",0,(IF(J58=\"x\",1,(IF(K58=\"x\",2,\"EINGABE?\"))))))))))","v":"EINGABE?"}]
[null,"Einnahmen und Ausgaben, Verschuldung"]
[null,"Steuern",null,null,null,null,null,null,null,null,null,{"$f":"(IF(G60=\"x\",-2,(IF(H60=\"x\",-1,(IF(I60=\"x\",0,(IF(J60=\"x\",1,(IF(K60=\"x\",2,\"EINGABE?\"))))))))))","v":"EINGABE?"}]
[null,"Steuerbelastung von Privaten und Unternehmen\n(Steuereinnahmen: unter \"Öffentlicher Haushalt\")"]
[null,"Produktion",null,null,null,null,null,null,null,null,null,{"$f":"(IF(G62=\"x\",-2,(IF(H62=\"x\",-1,(IF(I62=\"x\",0,(IF(J62=\"x\",1,(IF(K62=\"x\",2,\"EINGABE?\"))))))))))","v":"EINGABE?"}]
[null,"Umwelt- und sozialverträgliche Produktionsformen (z.B. Berücksichtigung in der öffentlichen Beschaffung)",null,null,null,null,null,null,null,null,null,null,"Eingabekontrolle Wirtschaft:"]
[null,"Fazit Wirtschaft\n(Zusammenfassung der Wirkungen, offene Fragen und Unsicherheiten etc.)",null,null,null,null,null,null,null,null,null,null,{"$f":"IF(COUNTIF(D40:E63,\"\")>36,\"Bitte für jeden Zielbereich die Wirkung beschreiben\",\"ok\")","v":"Bitte für jeden Zielbereich die Wirkung beschreiben"},null,{"$f":"IF(COUNTIF(G40:K63,\"x\")>12,\"f\",IF(COUNTIF(G40:K63,\"x\")<12,\"f\",\"ok\"))","v":"f"}]
[null,null,null,null,null,null,null,null,null,null,null,null,{"$f":"IF(COUNTIF(F40:J63,\"x\")>12,\"Bitte jeweils nur einen Wert ankreuzen.\",IF(COUNTIF(F40:J63,\"x\")<12,\"Bitte für jeden Zielbereich einen Wert ankreuzen\",\"\"))","v":"Bitte für jeden Zielbereich einen Wert ankreuzen"}]
[null,"GESELLSCHAFT"]
[null,"Lärm / Wohnqualität",null,null,null,null,null,null,null,null,null,{"$f":"IF(G67=\"x\",-2,(IF(H67=\"x\",-1,(IF(I67=\"x\",0,(IF(J67=\"x\",1,(IF(K67=\"x\",2,\"EINGABE?\")))))))))","v":"EINGABE?"}]
[null,"Lärmbelastung, Wohnqualität (Erschliessung, Freizeitangebote, soziale Durchmischung etc.)"]
[null,"Mobilität",null,null,null,null,null,null,null,null,null,{"$f":"IF(G69=\"x\",-2,(IF(H69=\"x\",-1,(IF(I69=\"x\",0,(IF(J69=\"x\",1,(IF(K69=\"x\",2,\"EINGABE?\")))))))))","v":"EINGABE?"}]
[null,"Erreichbarkeit von wichtigen Infrastrukturen und Dienstleistungen, Zugang zum öffentlichen Verkehr"]
[null,"Gesundheit",null,null,null,null,null,null,null,null,null,{"$f":"IF(G71=\"x\",-2,(IF(H71=\"x\",-1,(IF(I71=\"x\",0,(IF(J71=\"x\",1,(IF(K71=\"x\",2,\"EINGABE?\")))))))))","v":"EINGABE?"}]
[null,"Physisches und psychisches Wohlbefinden, Gesundheitsversorgung, Prävention "]
[null,"Sicherheit",null,null,null,null,null,null,null,null,null,{"$f":"IF(G73=\"x\",-2,(IF(H73=\"x\",-1,(IF(I73=\"x\",0,(IF(J73=\"x\",1,(IF(K73=\"x\",2,\"EINGABE?\")))))))))","v":"EINGABE?"}]
[null,"Physische Sicherheit (vor Gewalt, im Verkehr, vor Naturkatastrophen etc.), Rechtssicherheit, Versorgungssicherheit"]
[null,"Einkommens- und Vermögensverteilung ",null,null,null,null,null,null,null,null,null,{"$f":"IF(G75=\"x\",-2,(IF(H75=\"x\",-1,(IF(I75=\"x\",0,(IF(J75=\"x\",1,(IF(K75=\"x\",2,\"EINGABE?\")))))))))","v":"EINGABE?"}]
[null,"Differenz zwischen hohen und niedrigen Einkommen / Vermögen"]
[null,"Partizipation",null,null,null,null,null,null,null,null,null,{"$f":"IF(G77=\"x\",-2,(IF(H77=\"x\",-1,(IF(I77=\"x\",0,(IF(J77=\"x\",1,(IF(K77=\"x\",2,\"EINGABE?\")))))))))","v":"EINGABE?"}]
[null,"Teilnahme an gesellschaftlichen Entscheidungsprozessen (z.B. Mitwirkungsmöglichkeiten), persönliches Engagement (z.B. Freiwilligenarbeit), Information und Kommunikation"]
[null,"Kultur und Freizeit",null,null,null,null,null,null,null,null,null,{"$f":"IF(G79=\"x\",-2,(IF(H79=\"x\",-1,(IF(I79=\"x\",0,(IF(J79=\"x\",1,(IF(K79=\"x\",2,\"EINGABE?\")))))))))","v":"EINGABE?"}]
[null,"Kulturelle Vielfalt, Kulturschaffen, kulturelles Erbe, Kultur- und Freizeitangebot, Vereine"]
[null,"Bildung",null,null,null,null,null,null,null,null,null,{"$f":"IF(G81=\"x\",-2,(IF(H81=\"x\",-1,(IF(I81=\"x\",0,(IF(J81=\"x\",1,(IF(K81=\"x\",2,\"EINGABE?\")))))))))","v":"EINGABE?"}]
[null,"Bildungsqualität, Bildungsangebote für Kinder, Jugendliche und Erwachsene (im formellen und informellen Bereich)"]
[null,"Soziale Sicherheit",null,null,null,null,null,null,null,null,null,{"$f":"IF(G83=\"x\",-2,(IF(H83=\"x\",-1,(IF(I83=\"x\",0,(IF(J83=\"x\",1,(IF(K83=\"x\",2,\"EINGABE?\")))))))))","v":"EINGABE?"}]
[null,"z.B. existenzsichernde Einkommen, Arbeitsplätze für nicht voll leistungsfähige Personen, Unterstützungs- und Beratungsangebote"]
[null,"Integration",null,null,null,null,null,null,null,null,null,{"$f":"IF(G85=\"x\",-2,(IF(H85=\"x\",-1,(IF(I85=\"x\",0,(IF(J85=\"x\",1,(IF(K85=\"x\",2,\"EINGABE?\")))))))))","v":"EINGABE?"}]
[null,"Teilnahme aller gesellschaftlicher Gruppen (z.B. Menschen mit Behinderungen, Ausländer/innen, Kinder, Betagte) am wirtschaftlichen, sozialen und kulturellen Leben"]
[null,"Chancengleichheit",null,null,null,null,null,null,null,null,null,{"$f":"IF(G87=\"x\",-2,(IF(H87=\"x\",-1,(IF(I87=\"x\",0,(IF(J87=\"x\",1,(IF(K87=\"x\",2,\"EINGABE?\")))))))))","v":"EINGABE?"}]
[null,"Chancengleichheit unabhängig von Geschlecht, ethnischer oder sozialer Herkunft, etc."]
[null,"Überregionale Solidarität",null,null,null,null,null,null,null,null,null,{"$f":"IF(G89=\"x\",-2,(IF(H89=\"x\",-1,(IF(I89=\"x\",0,(IF(J89=\"x\",1,(IF(K89=\"x\",2,\"EINGABE?\")))))))))","v":"EINGABE?"}]
[null,"Zusammenarbeit und Solidarität mit anderen Regionen im In- und Ausland ",null,null,null,null,null,null,null,null,null,null,"Eingabekontrolle Gesellschaft:"]
[null,"Fazit Gesellschaft\n(Zusammenfassung der Wirkungen, offene Fragen und Unsicherheiten etc.)",null,null,null,null,null,null,null,null,null,null,{"$f":"IF(COUNTIF(D67:E90,\"\")>36,\"Bitte für jeden Zielbereich die Wirkung beschreiben\",\"ok\")","v":"Bitte für jeden Zielbereich die Wirkung beschreiben"},null,{"$f":"IF(COUNTIF(G67:K90,\"x\")>12,\"f\",IF(COUNTIF(G67:K90,\"x\")<12,\"f\",\"ok\"))","v":"f"}]
[null,null,null,null,null,null,null,null,null,null,null,null,{"$f":"IF(COUNTIF(F67:J90,\"x\")>12,\"Bitte jeweils nur einen Wert ankreuzen.\",IF(COUNTIF(F67:J90,\"x\")<12,\"Bitte für jeden Zielbereich einen Wert ankreuzen\",\"\"))","v":"Bitte für jeden Zielbereich einen Wert ankreuzen"}]
[null,"Gesamtfazit"]

{"sheet":"ZUSATZFRAGEN","index":2,"n_rows":43,"n_cols":11,"rows_kept":43,"cut":false,"hidden":false,"merged":[[3,1,3,10],[17,10,19,10],[20,10,22,10],[24,1,24,10],[11,10,13,10],[14,10,16,10],[8,10,10,10],[5,10,7,10],[4,2,4,8],[40,6,42,10],[32,2,32,10],[30,1,30,10],[26,2,26,10],[27,2,27,10],[28,2,28,10],[41,1,42,1],[38,1,39,1],[36,2,36,10],[37,2,37,4],[34,1,34,10],[38,6,39,10]]}
[]
[null,"Checkliste Zielbereiche: Zusatzfragen"]
[null,"BEWERTUNG DER WIRKUNGEN"]
[null,"Bewerten Sie hier die zu erwartenden Wirkungen des Vorhabens nach zentralen Gesichtspunkten der Nachhaltigen Entwicklung. Ziel ist es, die Wirkungen in einem erweiterten räumlichen und zeitlichen Horizont zu betrachten und besonders kritische Wirkungen zu identifizieren."]
[null,"Frage","Ankreuzen [x]",null,null,null,null,null,null,null,"Begründung / Kommentar (z.B. betroffene Zielbereiche)"]
[]
[null,"1 - Wirkung ausserhalb des betrachteten Zeithorizontes "]
[null,"Hat das Vorhaben Wirkungen, die erst nach Ablauf der in der NHB betrachteten Zeitspanne auftreten?\n(negative = Problemverlagerung, positive = Entlastung)","neg.",null,"keine",null,"pos.",null,"k.A."]
[]
[null,"2 - Wirkung ausserhalb der räumlichen Systemgrenze"]
[null,"Sind Folgen ausserhalb des in der NHB betrachteten Raums \n(in anderen Regionen, global) zu erwarten?\n(negative = Problemverlagerung, positive = Entlastung)","neg.",null,"keine",null,"pos.",null,"k.A."]
[]
[null,"3 - Wirkung auf bestehende Problemlage "]
[null,"Werden bereits bestehende Probleme oder negative Entwicklungen durch das Vorhaben beeinflusst?\n(negativ = Verstärkung, positiv = Behebung) ","neg.",null,"keine",null,"pos.",null,"k.A."]
[]
[null,"4 - Irreversible negative Wirkungen"]
[null,"Sind Verschlechterungen zu erwarten, die schwer oder gar nicht rückgängig gemacht werden können?"," ja",null,null,null," nein",null," k.A. "]
[]
[null,"5 - Risiken"]
[null,"Ist das Vorhaben mit Risiken vebunden, die ein hohes Schadenpotenzial aufweisen? "," ja",null,null,null," nein",null," k.A. "]
[]
[null,"6 - Unsicherheiten in der Beurteilung"]
[null,"Wie gross sind die Unsicherheiten bezüglich der \nAusgangslage oder der zu erwartenden Wirkungen?",null,null,"mittel",null,"klein",null," k.A. "]
[null,"OPTIMIERUNGSPOTENZIAL"]
[null,"Hier erfolgt eine erste grobe Analyse der Optimierungsmöglichkeiten des Vorhabens. Beachten Sie dabei, dass durch Optimierungen nicht neue unerwünschte Wirkungen produziert werden.  "]
[null,"Frage","Antwort"]
[null,"7 - Welche der in der Wirkungsbeurteilung identifizierten Schwächen (negative Wirkungen) können behoben oder gemindert werden? Wie?"]
[null,"8 - Welche der in der Wirkungsbeurteilung identifizierten Stärken (positive Wirkungen) können noch ausgebaut werden? Wie?"]
[null,"9 - Wie können zusätzliche Synergien (\"positive Nebenwirkungen\") geschaffen werden?\n"]
[null,"VERBLEIBENDE ZIELKONFLIKTE"]
[null,"Identifizieren Sie die hauptsächlichen Zielkonflikte, die auch nach einer allfälligen Optimierung bestehen bleiben. Es kann sich dabei um konkurrierende individuelle und/oder öffentliche Interessen handeln."]
[null,"Frage","Antwort"]
[null,"10 - Welches sind die hauptsächlichen Zielkonflikte bzw. konkurrierenden Interessen?"]
[null,"WEITERES VORGEHEN"]
[null,"Beschreiben Sie kurz, wie Sie die Resultate der NHB in der weiteren Planung des Vorhabens berücksichtigen werden."]
[null,"Frage","Antwort"]
[null,"11 - Wie werden die Resultate der NHB in die weitere Planung oder in die Umsetzung des Vorhabens einfliessen? Z.B. Einleitung von Optimierungen, Planung von flankierenden Massnahmen."]
[null,null,"[x]",null,null,null,"Begründung / Kommentar"]
[null,"12 - Ist eine Wiederholung (oder Aktualisierung) der NHB zu einem späteren Zeitpunkt vorgesehen?"]
[null,null,"ja",null,"nein"]
[]
[null,"13 - Ist eine NHB für nachfolgende Projekte (z.B. Umsetzungsprojekte) vorgesehen?"]
[null,null,"ja",null,"nein"]

{"sheet":"AUSWERTUNG vollständig","index":3,"n_rows":176,"n_cols":9,"rows_kept":176,"cut":false,"hidden":false,"merged":[[5,2,5,5],[7,16,7,19],[18,3,18,4],[27,0,28,0],[17,4,17,5],[43,3,43,4],[68,3,68,4],[9,1,13,4]]}
[]
["A","AUSWERTUNG (vollständig)"]
[null,{"$f":"CONCATENATE(\"Nachhaltigkeitsbeurteilung: \",WIRKUNGSBEURTEILUNG!B4)","v":"Nachhaltigkeitsbeurteilung: "}]
[]
[null,{"$f":"WIRKUNGSBEURTEILUNG!B6","v":0},"Datum:"]
[null,{"$f":"WIRKUNGSBEURTEILUNG!B8","v":0},{"$f":"WIRKUNGSBEURTEILUNG!E8","v":"00:00:00"}]
[null,{"$f":"WIRKUNGSBEURTEILUNG!E4","v":0}]
[null,{"$f":"WIRKUNGSBEURTEILUNG!E6","v":0}]
[null,"Bemerkungen:"]
[null,{"$f":"WIRKUNGSBEURTEILUNG!B10","v":0}]
[]
[]
[]
[]
[]
[null,"ZU ERWARTENDE WIRKUNGEN"]
[]
[null,null,"negativ",null,"positiv",null,{"$f":"IF(H18=3,AVERAGE(G19,G44,G69),\"EINGABE?\")","v":"EINGABE?"},{"$f":"COUNT(G19,G44,G69)","v":0}]
[null,"UMWELT",-2,"-1    0    1",null,2,{"$f":"IF(H19=12,AVERAGE(G20:G43),\"EINGABE?\")","v":"EINGABE?"},{"$f":"COUNT(G20:G43)","v":0}]
[null,{"$f":"WIRKUNGSBEURTEILUNG!B13","v":"Biodiversität"},{"$f":"'AUSWERTUNG vollständig'!$G20","v":"EINGABE?"},{"$f":"'AUSWERTUNG vollständig'!$G20","v":"EINGABE?"},{"$f":"'AUSWERTUNG vollständig'!$G20","v":"EINGABE?"},{"$f":"'AUSWERTUNG vollständig'!$G20","v":"EINGABE?"},{"$f":"WIRKUNGSBEURTEILUNG!L13","v":"EINGABE?"},{"$f":"IF(G20=\"EINGABE?\",\"Bewertung fehlt\",\" \")","v":"Bewertung fehlt"}]
[null,{"$f":"WIRKUNGSBEURTEILUNG!E13","v":0}]
[null,{"$f":"WIRKUNGSBEURTEILUNG!B15","v":"Natur und Landschaft"},{"$f":"'AUSWERTUNG vollständig'!$G22","v":"EINGABE?"},{"$f":"'AUSWERTUNG vollständig'!$G22","v":"EINGABE?"},{"$f":"'AUSWERTUNG vollständig'!$G22","v":"EINGABE?"},{"$f":"'AUSWERTUNG vollständig'!$G22","v":"EINGABE?"},{"$f":"WIRKUNGSBEURTEILUNG!L15","v":"EINGABE?"},{"$f":"IF(G22=\"EINGABE?\",\"Bewertung fehlt\",\" \")","v":"Bewertung fehlt"}]
[null,{"$f":"WIRKUNGSBEURTEILUNG!E15","v":0}]
[null,{"$f":"WIRKUNGSBEURTEILUNG!B17","v":"Energieverbrauch"},{"$f":"'AUSWERTUNG vollständig'!$G24","v":"EINGABE?"},{"$f":"'AUSWERTUNG vollständig'!$G24","v":"EINGABE?"},{"$f":"'AUSWERTUNG vollständig'!$G24","v":"EINGABE?"},{"$f":"'AUSWERTUNG vollständig'!$G24","v":"EINGABE?"},{"$f":"WIRKUNGSBEURTEILUNG!L17","v":"EINGABE?"},{"$f":"IF(G24=\"EINGABE?\",\"Bewertung fehlt\",\" \")","v":"Bewertung fehlt"}]
[null,{"$f":"WIRKUNGSBEURTEILUNG!E17","v":0}]
[null,{"$f":"WIRKUNGSBEURTEILUNG!B19","v":"Energiequalität"},{"$f":"'AUSWERTUNG vollständig'!$G26","v":"EINGABE?"},{"$f":"'AUSWERTUNG vollständig'!$G26","v":"EINGABE?"},{"$f":"'AUSWERTUNG vollständig'!$G26","v":"EINGABE?"},{"$f":"'AUSWERTUNG vollständig'!$G26","v":"EINGABE?"},{"$f":"WIRKUNGSBEURTEILUNG!L19","v":"EINGABE?"},{"$f":"IF(G26=\"EINGABE?\",\"Bewertung fehlt\",\" \")","v":"Bewertung fehlt"}]
[null,{"$f":"WIRKUNGSBEURTEILUNG!E19","v":0}]
[null,{"$f":"WIRKUNGSBEURTEILUNG!B21","v":"Klima"},{"$f":"'AUSWERTUNG vollständig'!$G28","v":"EINGABE?"},{"$f":"'AUSWERTUNG vollständig'!$G28","v":"EINGABE?"},{"$f":"'AUSWERTUNG vollständig'!$G28","v":"EINGABE?"},{"$f":"'AUSWERTUNG vollständig'!$G28","v":"EINGABE?"},{"$f":"WIRKUNGSBEURTEILUNG!L21","v":"EINGABE?"},{"$f":"IF(G28=\"EINGABE?\",\"Bewertung fehlt\",\" \")","v":"Bewertung fehlt"}]
[null,{"$f":"WIRKUNGSBEURTEILUNG!E21","v":0}]
[null,{"$f":"WIRKUNGSBEURTEILUNG!B23","v":"Rohstoffverbrauch"},{"$f":"'AUSWERTUNG vollständig'!$G30","v":"EINGABE?"},{"$f":"'AUSWERTUNG vollständig'!$G30","v":"EINGABE?"},{"$f":"'AUSWERTUNG vollständig'!$G30","v":"EINGABE?"},{"$f":"'AUSWERTUNG vollständig'!$G30","v":"EINGABE?"},{"$f":"WIRKUNGSBEURTEILUNG!L23","v":"EINGABE?"},{"$f":"IF(G30=\"EINGABE?\",\"Bewertung fehlt\",\" \")","v":"Bewertung fehlt"}]
[null,{"$f":"WIRKUNGSBEURTEILUNG!E23","v":0}]
[null,{"$f":"WIRKUNGSBEURTEILUNG!B25","v":"Rohstoffqualität"},{"$f":"'AUSWERTUNG vollständig'!$G32","v":"EINGABE?"},{"$f":"'AUSWERTUNG vollständig'!$G32","v":"EINGABE?"},{"$f":"'AUSWERTUNG vollständig'!$G32","v":"EINGABE?"},{"$f":"'AUSWERTUNG vollständig'!$G32","v":"EINGABE?"},{"$f":"WIRKUNGSBEURTEILUNG!L25","v":"EINGABE?"},{"$f":"IF(G32=\"EINGABE?\",\"Bewertung fehlt\",\" \")","v":"Bewertung fehlt"}]
[null,{"$f":"WIRKUNGSBEURTEILUNG!E25","v":0}]
[null,{"$f":"WIRKUNGSBEURTEILUNG!B27","v":"Wasserhaushalt"},{"$f":"'AUSWERTUNG vollständig'!$G34","v":"EINGABE?"},{"$f":"'AUSWERTUNG vollständig'!$G34","v":"EINGABE?"},{"$f":"'AUSWERTUNG vollständig'!$G34","v":"EINGABE?"},{"$f":"'AUSWERTUNG vollständig'!$G34","v":"EINGABE?"},{"$f":"WIRKUNGSBEURTEILUNG!L27","v":"EINGABE?"},{"$f":"IF(G34=\"EINGABE?\",\"Bewertung fehlt\",\" \")","v":"Bewertung fehlt"}]
[null,{"$f":"WIRKUNGSBEURTEILUNG!E27","v":0}]
[null,{"$f":"WIRKUNGSBEURTEILUNG!B29","v":"Wasserqualität"},{"$f":"'AUSWERTUNG vollständig'!$G36","v":"EINGABE?"},{"$f":"'AUSWERTUNG vollständig'!$G36","v":"EINGABE?"},{"$f":"'AUSWERTUNG vollständig'!$G36","v":"EINGABE?"},{"$f":"'AUSWERTUNG vollständig'!$G36","v":"EINGABE?"},{"$f":"WIRKUNGSBEURTEILUNG!L29","v":"EINGABE?"},{"$f":"IF(G36=\"EINGABE?\",\"Bewertung fehlt\",\" \")","v":"Bewertung fehlt"}]
[null,{"$f":"WIRKUNGSBEURTEILUNG!E29","v":0}]
[null,{"$f":"WIRKUNGSBEURTEILUNG!B31","v":"Bodenverbrauch"},{"$f":"'AUSWERTUNG vollständig'!$G38","v":"EINGABE?"},{"$f":"'AUSWERTUNG vollständig'!$G38","v":"EINGABE?"},{"$f":"'AUSWERTUNG vollständig'!$G38","v":"EINGABE?"},{"$f":"'AUSWERTUNG vollständig'!$G38","v":"EINGABE?"},{"$f":"WIRKUNGSBEURTEILUNG!L31","v":"EINGABE?"},{"$f":"IF(G38=\"EINGABE?\",\"Bewertung fehlt\",\" \")","v":"Bewertung fehlt"}]
[null,{"$f":"WIRKUNGSBEURTEILUNG!E31","v":0}]
[null,{"$f":"WIRKUNGSBEURTEILUNG!B33","v":"Bodenqualität"},{"$f":"'AUSWERTUNG vollständig'!$G40","v":"EINGABE?"},{"$f":"'AUSWERTUNG vollständig'!$G40","v":"EINGABE?"},{"$f":"'AUSWERTUNG vollständig'!$G40","v":"EINGABE?"},{"$f":"'AUSWERTUNG vollständig'!$G40","v":"EINGABE?"},{"$f":"WIRKUNGSBEURTEILUNG!L33","v":"EINGABE?"},{"$f":"IF(G40=\"EINGABE?\",\"Bewertung fehlt\",\" \")","v":"Bewertung fehlt"}]
[null,{"$f":"WIRKUNGSBEURTEILUNG!E33","v":0}]
[null,{"$f":"WIRKUNGSBEURTEILUNG!B35","v":"Luftqualität"},{"$f":"'AUSWERTUNG vollständig'!$G42","v":"EINGABE?"},{"$f":"'AUSWERTUNG vollständig'!$G42","v":"EINGABE?"},{"$f":"'AUSWERTUNG vollständig'!$G42","v":"EINGABE?"},{"$f":"'AUSWERTUNG vollständig'!$G42","v":"EINGABE?"},{"$f":"WIRKUNGSBEURTEILUNG!L35","v":"EINGABE?"},{"$f":"IF(G42=\"EINGABE?\",\"Bewertung fehlt\",\" \")","v":"Bewertung fehlt"}]
[null,{"$f":"WIRKUNGSBEURTEILUNG!E35","v":0}]
[null,"WIRTSCHAFT",-2,"-1    0    1",null,2,{"$f":"IF(H44=12,AVERAGE(G45:G68),\"EINGABE?\")","v":"EINGABE?"},{"$f":"COUNT(G45:G68)","v":0}]
[null,{"$f":"WIRKUNGSBEURTEILUNG!B40","v":"Einkommen"},{"$f":"'AUSWERTUNG vollständig'!$G45","v":"EINGABE?"},{"$f":"'AUSWERTUNG vollständig'!$G45","v":"EINGABE?"},{"$f":"'AUSWERTUNG vollständig'!$G45","v":"EINGABE?"},{"$f":"'AUSWERTUNG vollständig'!$G45","v":"EINGABE?"},{"$f":"WIRKUNGSBEURTEILUNG!L40","v":"EINGABE?"},{"$f":"IF(G45=\"EINGABE?\",\"Bewertung fehlt\",\" \")","v":"Bewertung fehlt"}]
[null,{"$f":"WIRKUNGSBEURTEILUNG!E40","v":0}]
[null,{"$f":"WIRKUNGSBEURTEILUNG!B42","v":"Lebenskosten "},{"$f":"'AUSWERTUNG vollständig'!$G47","v":"EINGABE?"},{"$f":"'AUSWERTUNG vollständig'!$G47","v":"EINGABE?"},{"$f":"'AUSWERTUNG vollständig'!$G47","v":"EINGABE?"},{"$f":"'AUSWERTUNG vollständig'!$G47","v":"EINGABE?"},{"$f":"WIRKUNGSBEURTEILUNG!L42","v":"EINGABE?"},"Bewertung fehlt"]
[null,{"$f":"WIRKUNGSBEURTEILUNG!E42","v":0}]
[null,{"$f":"WIRKUNGSBEURTEILUNG!B44","v":"Arbeitsmarkt"},{"$f":"'AUSWERTUNG vollständig'!$G49","v":"EINGABE?"},{"$f":"'AUSWERTUNG vollständig'!$G49","v":"EINGABE?"},{"$f":"'AUSWERTUNG vollständig'!$G49","v":"EINGABE?"},{"$f":"'AUSWERTUNG vollständig'!$G49","v":"EINGABE?"},{"$f":"WIRKUNGSBEURTEILUNG!L44","v":"EINGABE?"},"Bewertung fehlt"]
[null,{"$f":"WIRKUNGSBEURTEILUNG!E44","v":0}]
[null,{"$f":"WIRKUNGSBEURTEILUNG!B46","v":"Investitionen"},{"$f":"'AUSWERTUNG vollständig'!$G51","v":"EINGABE?"},{"$f":"'AUSWERTUNG vollständig'!$G51","v":"EINGABE?"},{"$f":"'AUSWERTUNG vollständig'!$G51","v":"EINGABE?"},{"$f":"'AUSWERTUNG vollständig'!$G51","v":"EINGABE?"},{"$f":"WIRKUNGSBEURTEILUNG!L46","v":"EINGABE?"},"Bewertung fehlt"]
[null,{"$f":"WIRKUNGSBEURTEILUNG!E46","v":0}]
[null,{"$f":"WIRKUNGSBEURTEILUNG!B48","v":"Kostenwahrheit "},{"$f":"'AUSWERTUNG vollständig'!$G53","v":"EINGABE?"},{"$f":"'AUSWERTUNG vollständig'!$G53","v":"EINGABE?"},{"$f":"'AUSWERTUNG vollständig'!$G53","v":"EINGABE?"},{"$f":"'AUSWERTUNG vollständig'!$G53","v":"EINGABE?"},{"$f":"WIRKUNGSBEURTEILUNG!L48","v":"EINGABE?"},"Bewertung fehlt"]
[null,{"$f":"WIRKUNGSBEURTEILUNG!E48","v":0}]
[null,{"$f":"WIRKUNGSBEURTEILUNG!B50","v":"Ressourceneffizienz  "},{"$f":"'AUSWERTUNG vollständig'!$G55","v":"EINGABE?"},{"$f":"'AUSWERTUNG vollständig'!$G55","v":"EINGABE?"},{"$f":"'AUSWERTUNG vollständig'!$G55","v":"EINGABE?"},{"$f":"'AUSWERTUNG vollständig'!$G55","v":"EINGABE?"},{"$f":"WIRKUNGSBEURTEILUNG!L50","v":"EINGABE?"},"Bewertung fehlt"]
[null,{"$f":"WIRKUNGSBEURTEILUNG!E50","v":0}]
[null,{"$f":"WIRKUNGSBEURTEILUNG!B52","v":"Innovationen"},{"$f":"'AUSWERTUNG vollständig'!$G57","v":"EINGABE?"},{"$f":"'AUSWERTUNG vollständig'!$G57","v":"EINGABE?"},{"$f":"'AUSWERTUNG vollständig'!$G57","v":"EINGABE?"},{"$f":"'AUSWERTUNG vollständig'!$G57","v":"EINGABE?"},{"$f":"WIRKUNGSBEURTEILUNG!L52","v":"EINGABE?"},"Bewertung fehlt"]
[null,{"$f":"WIRKUNGSBEURTEILUNG!E52","v":0}]
[null,{"$f":"WIRKUNGSBEURTEILUNG!B54","v":"Wirtschaftsstruktur"},{"$f":"'AUSWERTUNG vollständig'!$G59","v":"EINGABE?"},{"$f":"'AUSWERTUNG vollständig'!$G59","v":"EINGABE?"},{"$f":"'AUSWERTUNG vollständig'!$G59","v":"EINGABE?"},{"$f":"'AUSWERTUNG vollständig'!$G59","v":"EINGABE?"},{"$f":"WIRKUNGSBEURTEILUNG!L54","v":"EINGABE?"},"Bewertung fehlt"]
[null,{"$f":"WIRKUNGSBEURTEILUNG!E54","v":0}]
[null,{"$f":"WIRKUNGSBEURTEILUNG!B56","v":"Know-how"},{"$f":"'AUSWERTUNG vollständig'!$G61","v":"EINGABE?"},{"$f":"'AUSWERTUNG vollständig'!$G61","v":"EINGABE?"},{"$f":"'AUSWERTUNG vollständig'!$G61","v":"EINGABE?"},{"$f":"'AUSWERTUNG vollständig'!$G61","v":"EINGABE?"},{"$f":"WIRKUNGSBEURTEILUNG!L56","v":"EINGABE?"},"Bewertung fehlt"]
[null,{"$f":"WIRKUNGSBEURTEILUNG!E56","v":0}]
[null,{"$f":"WIRKUNGSBEURTEILUNG!B58","v":"Öffentlicher Haushalt"},{"$f":"'AUSWERTUNG vollständig'!$G63","v":"EINGABE?"},{"$f":"'AUSWERTUNG vollständig'!$G63","v":"EINGABE?"},{"$f":"'AUSWERTUNG vollständig'!$G63","v":"EINGABE?"},{"$f":"'AUSWERTUNG vollständig'!$G63","v":"EINGABE?"},{"$f":"WIRKUNGSBEURTEILUNG!L58","v":"EINGABE?"},"Bewertung fehlt"]
[null,{"$f":"WIRKUNGSBEURTEILUNG!E58","v":0}]
[null,{"$f":"WIRKUNGSBEURTEILUNG!B60","v":"Steuern"},{"$f":"'AUSWERTUNG vollständig'!$G65","v":"EINGABE?"},{"$f":"'AUSWERTUNG vollständig'!$G65","v":"EINGABE?"},{"$f":"'AUSWERTUNG vollständig'!$G65","v":"EINGABE?"},{"$f":"'AUSWERTUNG vollständig'!$G65","v":"EINGABE?"},{"$f":"WIRKUNGSBEURTEILUNG!L60","v":"EINGABE?"},"Bewertung fehlt"]
[null,{"$f":"WIRKUNGSBEURTEILUNG!E60","v":0}]
[null,{"$f":"WIRKUNGSBEURTEILUNG!B62","v":"Produktion"},{"$f":"'AUSWERTUNG vollständig'!$G67","v":"EINGABE?"},{"$f":"'AUSWERTUNG vollständig'!$G67","v":"EINGABE?"},{"$f":"'AUSWERTUNG vollständig'!$G67","v":"EINGABE?"},{"$f":"'AUSWERTUNG vollständig'!$G67","v":"EINGABE?"},{"$f":"WIRKUNGSBEURTEILUNG!L62","v":"EINGABE?"},"Bewertung fehlt"]
[null,{"$f":"WIRKUNGSBEURTEILUNG!E62","v":0}]
[null,"GESELLSCHAFT",-2,"-1    0    1",null,2,{"$f":"IF(H69=12,AVERAGE(G70:G93),\"EINGABE?\")","v":"EINGABE?"},{"$f":"COUNT(G70:G93)","v":0}]
[null,{"$f":"WIRKUNGSBEURTEILUNG!B67","v":"Lärm / Wohnqualität"},{"$f":"'AUSWERTUNG vollständig'!$G70","v":"EINGABE?"},{"$f":"'AUSWERTUNG vollständig'!$G70","v":"EINGABE?"},{"$f":"'AUSWERTUNG vollständig'!$G70","v":"EINGABE?"},{"$f":"'AUSWERTUNG vollständig'!$G70","v":"EINGABE?"},{"$f":"WIRKUNGSBEURTEILUNG!L67","v":"EINGABE?"},{"$f":"IF(G70=\"EINGABE?\",\"Bewertung fehlt\",\" \")","v":"Bewertung fehlt"}]
[null,{"$f":"WIRKUNGSBEURTEILUNG!E67","v":0}]
[null,{"$f":"WIRKUNGSBEURTEILUNG!B69","v":"Mobilität"},{"$f":"'AUSWERTUNG vollständig'!$G72","v":"EINGABE?"},{"$f":"'AUSWERTUNG vollständig'!$G72","v":"EINGABE?"},{"$f":"'AUSWERTUNG vollständig'!$G72","v":"EINGABE?"},{"$f":"'AUSWERTUNG vollständig'!$G72","v":"EINGABE?"},{"$f":"WIRKUNGSBEURTEILUNG!L69","v":"EINGABE?"},"Bewertung fehlt"]
[null,{"$f":"WIRKUNGSBEURTEILUNG!E69","v":0}]
[null,{"$f":"WIRKUNGSBEURTEILUNG!B71","v":"Gesundheit"},{"$f":"'AUSWERTUNG vollständig'!$G74","v":"EINGABE?"},{"$f":"'AUSWERTUNG vollständig'!$G74","v":"EINGABE?"},{"$f":"'AUSWERTUNG vollständig'!$G74","v":"EINGABE?"},{"$f":"'AUSWERTUNG vollständig'!$G74","v":"EINGABE?"},{"$f":"WIRKUNGSBEURTEILUNG!L71","v":"EINGABE?"},"Bewertung fehlt"]
[null,{"$f":"WIRKUNGSBEURTEILUNG!E71","v":0}]
[null,{"$f":"WIRKUNGSBEURTEILUNG!B73","v":"Sicherheit"},{"$f":"'AUSWERTUNG vollständig'!$G76","v":"EINGABE?"},{"$f":"'AUSWERTUNG vollständig'!$G76","v":"EINGABE?"},{"$f":"'AUSWERTUNG vollständig'!$G76","v":"EINGABE?"},{"$f":"'AUSWERTUNG vollständig'!$G76","v":"EINGABE?"},{"$f":"WIRKUNGSBEURTEILUNG!L73","v":"EINGABE?"},"Bewertung fehlt"]
[null,{"$f":"WIRKUNGSBEURTEILUNG!E73","v":0}]
[null,{"$f":"WIRKUNGSBEURTEILUNG!B75","v":"Einkommens- und Vermögensverteilung "},{"$f":"'AUSWERTUNG vollständig'!$G78","v":"EINGABE?"},{"$f":"'AUSWERTUNG vollständig'!$G78","v":"EINGABE?"},{"$f":"'AUSWERTUNG vollständig'!$G78","v":"EINGABE?"},{"$f":"'AUSWERTUNG vollständig'!$G78","v":"EINGABE?"},{"$f":"WIRKUNGSBEURTEILUNG!L75","v":"EINGABE?"},"Bewertung fehlt"]
[null,{"$f":"WIRKUNGSBEURTEILUNG!E75","v":0}]
[null,{"$f":"WIRKUNGSBEURTEILUNG!B77","v":"Partizipation"},{"$f":"'AUSWERTUNG vollständig'!$G80","v":"EINGABE?"},{"$f":"'AUSWERTUNG vollständig'!$G80","v":"EINGABE?"},{"$f":"'AUSWERTUNG vollständig'!$G80","v":"EINGABE?"},{"$f":"'AUSWERTUNG vollständig'!$G80","v":"EINGABE?"},{"$f":"WIRKUNGSBEURTEILUNG!L77","v":"EINGABE?"},"Bewertung fehlt"]
[null,{"$f":"WIRKUNGSBEURTEILUNG!E77","v":0}]
[null,{"$f":"WIRKUNGSBEURTEILUNG!B79","v":"Kultur und Freizeit"},{"$f":"'AUSWERTUNG vollständig'!$G82","v":"EINGABE?"},{"$f":"'AUSWERTUNG vollständig'!$G82","v":"EINGABE?"},{"$f":"'AUSWERTUNG vollständig'!$G82","v":"EINGABE?"},{"$f":"'AUSWERTUNG vollständig'!$G82","v":"EINGABE?"},{"$f":"WIRKUNGSBEURTEILUNG!L79","v":"EINGABE?"},"Bewertung fehlt"]
[null,{"$f":"WIRKUNGSBEURTEILUNG!E79","v":0}]
[null,{"$f":"WIRKUNGSBEURTEILUNG!B81","v":"Bildung"},{"$f":"'AUSWERTUNG vollständig'!$G84","v":"EINGABE?"},{"$f":"'AUSWERTUNG vollständig'!$G84","v":"EINGABE?"},{"$f":"'AUSWERTUNG vollständig'!$G84","v":"EINGABE?"},{"$f":"'AUSWERTUNG vollständig'!$G84","v":"EINGABE?"},{"$f":"WIRKUNGSBEURTEILUNG!L81","v":"EINGABE?"},"Bewertung fehlt"]
[null,{"$f":"WIRKUNGSBEURTEILUNG!E81","v":0}]
[null,{"$f":"WIRKUNGSBEURTEILUNG!B83","v":"Soziale Sicherheit"},{"$f":"'AUSWERTUNG vollständig'!$G86","v":"EINGABE?"},{"$f":"'AUSWERTUNG vollständig'!$G86","v":"EINGABE?"},{"$f":"'AUSWERTUNG vollständig'!$G86","v":"EINGABE?"},{"$f":"'AUSWERTUNG vollständig'!$G86","v":"EINGABE?"},{"$f":"WIRKUNGSBEURTEILUNG!L83","v":"EINGABE?"},"Bewertung fehlt"]
[null,{"$f":"WIRKUNGSBEURTEILUNG!E83","v":0}]
[null,{"$f":"WIRKUNGSBEURTEILUNG!B85","v":"Integration"},{"$f":"'AUSWERTUNG vollständig'!$G88","v":"EINGABE?"},{"$f":"'AUSWERTUNG vollständig'!$G88","v":"EINGABE?"},{"$f":"'AUSWERTUNG vollständig'!$G88","v":"EINGABE?"},{"$f":"'AUSWERTUNG vollständig'!$G88","v":"EINGABE?"},{"$f":"WIRKUNGSBEURTEILUNG!L85","v":"EINGABE?"},"Bewertung fehlt"]
[null,{"$f":"WIRKUNGSBEURTEILUNG!E85","v":0}]
[null,{"$f":"WIRKUNGSBEURTEILUNG!B87","v":"Chancengleichheit"},{"$f":"'AUSWERTUNG vollständig'!$G90","v":"EINGABE?"},{"$f":"'AUSWERTUNG vollständig'!$G90","v":"EINGABE?"},{"$f":"'AUSWERTUNG vollständig'!$G90","v":"EINGABE?"},{"$f":"'AUSWERTUNG vollständig'!$G90","v":"EINGABE?"},{"$f":"WIRKUNGSBEURTEILUNG!L87","v":"EINGABE?"},"Bewertung fehlt"]
[null,{"$f":"WIRKUNGSBEURTEILUNG!E87","v":0}]
[null,{"$f":"WIRKUNGSBEURTEILUNG!B89","v":"Überregionale Solidarität"},{"$f":"'AUSWERTUNG vollständig'!$G92","v":"EINGABE?"},{"$f":"'AUSWERTUNG vollständig'!$G92","v":"EINGABE?"},{"$f":"'AUSWERTUNG vollständig'!$G92","v":"EINGABE?"},{"$f":"'AUSWERTUNG vollständig'!$G92","v":"EINGABE?"},{"$f":"WIRKUNGSBEURTEILUNG!L89","v":"EINGABE?"},"Bewertung fehlt"]
[null,{"$f":"WIRKUNGSBEURTEILUNG!E89","v":0}]
[null,"."]
[null,"Fazit Umwelt"]
[null,{"$f":"WIRKUNGSBEURTEILUNG!E37","v":0}]
[null,"."]
[null,"Fazit Wirtschaft"]
[null,{"$f":"WIRKUNGSBEURTEILUNG!E64","v":0}]
[]
[null,"Fazit Gesellschaft "]
[null,{"$f":"WIRKUNGSBEURTEILUNG!E91","v":0}]
[null,"."]
[null,"Gesamtfazit"]
[null,{"$f":"WIRKUNGSBEURTEILUNG!B94","v":0}]
[]
[]
[]
[]
[]
[]
[]
[]
[]
[]
[]
[]
[null,"BEWERTUNG DER WIRKUNGEN"]
[]
[null,"Wirkung ausserhalb des betrachteten Zeithorizontes:",{"$f":"ZUSATZFRAGEN!C7","v":0},{"$f":"ZUSATZFRAGEN!E7","v":0},{"$f":"ZUSATZFRAGEN!G7","v":0},{"$f":"ZUSATZFRAGEN!I7","v":0},null,{"$f":"IF(COUNTIF(C120:F120,0)=4,\"fehlende Eingabe\",\"\")","v":"fehlende Eingabe"}]
[null,{"$f":"ZUSATZFRAGEN!K6","v":0},"neg.","keine","pos.","k.A."]
[]
[null,"Wirkung ausserhalb der räumlichen Systemgrenzen:",{"$f":"ZUSATZFRAGEN!C10","v":0},{"$f":"ZUSATZFRAGEN!E10","v":0},{"$f":"ZUSATZFRAGEN!G10","v":0},{"$f":"ZUSATZFRAGEN!I10","v":0},null,{"$f":"IF(COUNTIF(C123:F123,0)=4,\"fehlende Eingabe\",\"\")","v":"fehlende Eingabe"}]
[null,{"$f":"ZUSATZFRAGEN!K9","v":0},"neg.","keine","pos.","k.A."]
[]
[null,"Wirkung auf bestehende Problemlage:",{"$f":"ZUSATZFRAGEN!C13","v":0},{"$f":"ZUSATZFRAGEN!E13","v":0},{"$f":"ZUSATZFRAGEN!G13","v":0},{"$f":"ZUSATZFRAGEN!I13","v":0},null,{"$f":"IF(COUNTIF(C126:F126,0)=4,\"fehlende Eingabe\",\"\")","v":"fehlende Eingabe"}]
[null,{"$f":"ZUSATZFRAGEN!K12","v":0},"neg.","keine","pos.","k.A."]
[]
[null,"Irreversible negative Wirkungen:",{"$f":"ZUSATZFRAGEN!C16","v":0},null,{"$f":"ZUSATZFRAGEN!G16","v":0},{"$f":"ZUSATZFRAGEN!I16","v":0},null,{"$f":"IF(COUNTIF(C129:F129,0)=3,\"fehlende Eingabe\",\"\")","v":"fehlende Eingabe"}]
[null,{"$f":"ZUSATZFRAGEN!K15","v":0},"ja",null,"nein","k.A. "]
[]
[null,"Risiken mit grossem Schadenspotenzial:",{"$f":"ZUSATZFRAGEN!C19","v":0},null,{"$f":"ZUSATZFRAGEN!G19","v":0},{"$f":"ZUSATZFRAGEN!I19","v":0},null,{"$f":"IF(COUNTIF(C132:F132,0)=3,\"fehlende Eingabe\",\"\")","v":"fehlende Eingabe"}]
[null,{"$f":"ZUSATZFRAGEN!K18","v":0},"ja",null,"nein","k.A. "]
[]
[null,"Unsicherheiten in der Beurteilung:",{"$f":"ZUSATZFRAGEN!C22","v":0},{"$f":"ZUSATZFRAGEN!E22","v":0},{"$f":"ZUSATZFRAGEN!G22","v":0},{"$f":"ZUSATZFRAGEN!I22","v":0},null,{"$f":"IF(COUNTIF(C135:F135,0)=4,\"fehlende Eingabe\",\"\")","v":"fehlende Eingabe"}]
[null,{"$f":"ZUSATZFRAGEN!K21","v":0},"gross","mittel","klein","k.A. "]
[null,null,"k.A. = keine Antwort"]
[null,"OPTIMIERUNGSPOTENZIAL"]
[]
[null,"Behebung von Schwächen:"]
[null,{"$f":"ZUSATZFRAGEN!C27","v":0}]
[]
[null,"Ausbau von Stärken:"]
[null,{"$f":"ZUSATZFRAGEN!C28","v":0}]
[]
[null,"Schaffung von Synergien:"]
[null,{"$f":"ZUSATZFRAGEN!C29","v":0}]
[]
[null,"VERBLEIBENDE ZIELKONFLIKTE"]
[]
[null,"Zielkonflikte, die trotz Optimierung bestehen bleiben:"]
[null,{"$f":"ZUSATZFRAGEN!C33","v":0}]
[]
[null,"WEITERES VORGEHEN"]
[]
[null,"Umsetzung der Resultate:"]
[null,{"$f":"ZUSATZFRAGEN!C37","v":0}]
[]
[null,{"$f":"CONCATENATE(\"Wiederholung / Aktualisierung der NHB:   \",H166)","v":"Wiederholung / Aktualisierung der NHB:    "}]
[null,{"$f":"ZUSATZFRAGEN!G39","v":0}]
[]
[null,{"$f":"CONCATENATE(\"NHB für nachfolgende Projekte:   \",H168)","v":"NHB für nachfolgende Projekte:    "}]
[null,{"$f":"ZUSATZFRAGEN!G41","v":0}]
[]
[]
[null,null,null,null,null,null,null,{"$f":"IF(ZUSATZFRAGEN!C39=\"x\",\"JA\",(IF(ZUSATZFRAGEN!E39=\"x\",\"NEIN\",\" \")))","v":" "}]
[]
[null,null,null,null,null,null,null,{"$f":"IF(ZUSATZFRAGEN!C42=\"x\",\"JA\",(IF(ZUSATZFRAGEN!E42=\"x\",\"NEIN\",\" \")))","v":" "}]
[]
[]
[]
[]
[null,null,null,null,null,null,null,"Umwelt",{"$f":"G19","v":"EINGABE?"}]
[null,null,null,null,null,null,null,"Wirtschaft",{"$f":"G44","v":"EINGABE?"}]
[null,null,null,null,null,null,null,"Gesellschaft",{"$f":"G69","v":"EINGABE?"}]
[null,null,null,null,null,null,null,"gesamt",{"$f":"G18","v":"EINGABE?"}]

{"sheet":"AUSWERTUNG Zusammenfassung","index":4,"n_rows":126,"n_cols":15,"rows_kept":126,"cut":false,"hidden":false,"merged":[[11,1,11,3],[72,1,73,2],[84,7,85,12],[9,1,9,12],[40,10,51,12],[69,1,70,2],[75,1,76,2],[13,10,13,12],[26,10,26,12],[39,10,39,12],[14,10,25,12],[69,7,70,12],[81,7,82,12],[72,7,73,12],[75,7,76,12],[78,7,79,12],[109,2,110,2],[97,3,99,12],[102,3,105,12],[109,3,111,12],[102,1,104,2],[84,1,85,1],[85,2,85,3],[81,1,82,2],[78,1,79,2],[117,1,118,1],[113,4,115,12],[117,4,119,12],[113,1,114,1],[89,3,91,12],[93,3,95,12],[5,4,5,6],[11,4,11,5],[11,6,11,7],[8,4,8,12],[53,6,65,12],[12,5,12,6],[27,10,38,12]]}
[]
[null,"AUSWERTUNG (Zusammenfassung)"]
[null,{"$f":"CONCATENATE(\"Nachhaltigkeitsbeurteilung: \",WIRKUNGSBEURTEILUNG!B4)","v":"Nachhaltigkeitsbeurteilung: "}]
[null,"Planungsstand (Version):",null,null,{"$f":"WIRKUNGSBEURTEILUNG!B6","v":0}]
[null,"Beurteilung durchgeführt von:",null,null,{"$f":"WIRKUNGSBEURTEILUNG!B8","v":0}]
[null,{"$f":"WIRKUNGSBEURTEILUNG!E7","v":"Datum:"},null,null,{"$f":"WIRKUNGSBEURTEILUNG!E8","v":"00:00:00"}]
[null,"Betrachtungshorizont:",null,null,{"$f":"WIRKUNGSBEURTEILUNG!E4","v":0}]
[null,{"$f":"WIRKUNGSBEURTEILUNG!E5","v":"Vergleichsbasis:"},null,null,{"$f":"WIRKUNGSBEURTEILUNG!E6","v":0}]
[null,"Bemerkungen:"]
[null,{"$f":"WIRKUNGSBEURTEILUNG!B10","v":0}]
[]
[null,"WIRKUNGEN DES VORHABENS",null,null,"negativ",null,"positiv"]
[null,null,null,{"$f":"AVERAGE(D14,D27,D40)","v":{"$error":"#DIV/0!"}},-2,"-1    0    1",null,2]
[null,"UMWELT","Ø",{"$f":"AVERAGE(I15:I26)","v":{"$error":"#DIV/0!"}},null,null,null,null,null,null,"Fazit Umwelt"]
[null,{"$f":"WIRKUNGSBEURTEILUNG!B13","v":"Biodiversität"},null,null,{"$f":"'AUSWERTUNG Zusammenfassung'!$I15","v":{"$error":"#DIV/0!"}},{"$f":"'AUSWERTUNG Zusammenfassung'!$I15","v":{"$error":"#DIV/0!"}},{"$f":"'AUSWERTUNG Zusammenfassung'!$I15","v":{"$error":"#DIV/0!"}},{"$f":"'AUSWERTUNG Zusammenfassung'!$I15","v":{"$error":"#DIV/0!"}},{"$f":"AVERAGE(WIRKUNGSBEURTEILUNG!$L$13:$L$13)","v":{"$error":"#DIV/0!"}},null,{"$f":"WIRKUNGSBEURTEILUNG!E37","v":0},null,null,null,{"$f":"IF(COUNTIF(I15:I26,\">=-2\")<12,\"Fehlende Eingabe\",\"\")","v":"Fehlende Eingabe"}]
[null,{"$f":"WIRKUNGSBEURTEILUNG!B15","v":"Natur und Landschaft"},null,null,{"$f":"'AUSWERTUNG Zusammenfassung'!$I16","v":{"$error":"#DIV/0!"}},{"$f":"'AUSWERTUNG Zusammenfassung'!$I16","v":{"$error":"#DIV/0!"}},{"$f":"'AUSWERTUNG Zusammenfassung'!$I16","v":{"$error":"#DIV/0!"}},{"$f":"'AUSWERTUNG Zusammenfassung'!$I16","v":{"$error":"#DIV/0!"}},{"$f":"AVERAGE(WIRKUNGSBEURTEILUNG!$L$15:$L$15)","v":{"$error":"#DIV/0!"}},null,null,null,null,null,{"$f":"IF(K15=0,\"Fazit fehlt\",\"\")","v":"Fazit fehlt"}]
[null,{"$f":"WIRKUNGSBEURTEILUNG!B17","v":"Energieverbrauch"},null,null,{"$f":"'AUSWERTUNG Zusammenfassung'!$I17","v":{"$error":"#DIV/0!"}},{"$f":"'AUSWERTUNG Zusammenfassung'!$I17","v":{"$error":"#DIV/0!"}},{"$f":"'AUSWERTUNG Zusammenfassung'!$I17","v":{"$error":"#DIV/0!"}},{"$f":"'AUSWERTUNG Zusammenfassung'!$I17","v":{"$error":"#DIV/0!"}},{"$f":"AVERAGE(WIRKUNGSBEURTEILUNG!$L$17:$L$17)","v":{"$error":"#DIV/0!"}}]
[null,{"$f":"WIRKUNGSBEURTEILUNG!B19","v":"Energiequalität"},null,null,{"$f":"'AUSWERTUNG Zusammenfassung'!$I18","v":{"$error":"#DIV/0!"}},{"$f":"'AUSWERTUNG Zusammenfassung'!$I18","v":{"$error":"#DIV/0!"}},{"$f":"'AUSWERTUNG Zusammenfassung'!$I18","v":{"$error":"#DIV/0!"}},{"$f":"'AUSWERTUNG Zusammenfassung'!$I18","v":{"$error":"#DIV/0!"}},{"$f":"AVERAGE(WIRKUNGSBEURTEILUNG!$L$19:$L$19)","v":{"$error":"#DIV/0!"}}]
[null,{"$f":"WIRKUNGSBEURTEILUNG!B21","v":"Klima"},null,null,{"$f":"'AUSWERTUNG Zusammenfassung'!$I19","v":{"$error":"#DIV/0!"}},{"$f":"'AUSWERTUNG Zusammenfassung'!$I19","v":{"$error":"#DIV/0!"}},{"$f":"'AUSWERTUNG Zusammenfassung'!$I19","v":{"$error":"#DIV/0!"}},{"$f":"'AUSWERTUNG Zusammenfassung'!$I19","v":{"$error":"#DIV/0!"}},{"$f":"AVERAGE(WIRKUNGSBEURTEILUNG!$L$21:$L$21)","v":{"$error":"#DIV/0!"}}]
[null,{"$f":"WIRKUNGSBEURTEILUNG!B23","v":"Rohstoffverbrauch"},null,null,{"$f":"'AUSWERTUNG Zusammenfassung'!$I20","v":{"$error":"#DIV/0!"}},{"$f":"'AUSWERTUNG Zusammenfassung'!$I20","v":{"$error":"#DIV/0!"}},{"$f":"'AUSWERTUNG Zusammenfassung'!$I20","v":{"$error":"#DIV/0!"}},{"$f":"'AUSWERTUNG Zusammenfassung'!$I20","v":{"$error":"#DIV/0!"}},{"$f":"AVERAGE(WIRKUNGSBEURTEILUNG!$L$23:$L$23)","v":{"$error":"#DIV/0!"}}]
[null,{"$f":"WIRKUNGSBEURTEILUNG!B25","v":"Rohstoffqualität"},null,null,{"$f":"'AUSWERTUNG Zusammenfassung'!$I21","v":{"$error":"#DIV/0!"}},{"$f":"'AUSWERTUNG Zusammenfassung'!$I21","v":{"$error":"#DIV/0!"}},{"$f":"'AUSWERTUNG Zusammenfassung'!$I21","v":{"$error":"#DIV/0!"}},{"$f":"'AUSWERTUNG Zusammenfassung'!$I21","v":{"$error":"#DIV/0!"}},{"$f":"AVERAGE(WIRKUNGSBEURTEILUNG!$L$25:$L$25)","v":{"$error":"#DIV/0!"}}]
[null,{"$f":"WIRKUNGSBEURTEILUNG!B27","v":"Wasserhaushalt"},null,null,{"$f":"'AUSWERTUNG Zusammenfassung'!$I22","v":{"$error":"#DIV/0!"}},{"$f":"'AUSWERTUNG Zusammenfassung'!$I22","v":{"$error":"#DIV/0!"}},{"$f":"'AUSWERTUNG Zusammenfassung'!$I22","v":{"$error":"#DIV/0!"}},{"$f":"'AUSWERTUNG Zusammenfassung'!$I22","v":{"$error":"#DIV/0!"}},{"$f":"AVERAGE(WIRKUNGSBEURTEILUNG!$L$27:$L$27)","v":{"$error":"#DIV/0!"}}]
[null,{"$f":"WIRKUNGSBEURTEILUNG!B29","v":"Wasserqualität"},null,null,{"$f":"'AUSWERTUNG Zusammenfassung'!$I23","v":{"$error":"#DIV/0!"}},{"$f":"'AUSWERTUNG Zusammenfassung'!$I23","v":{"$error":"#DIV/0!"}},{"$f":"'AUSWERTUNG Zusammenfassung'!$I23","v":{"$error":"#DIV/0!"}},{"$f":"'AUSWERTUNG Zusammenfassung'!$I23","v":{"$error":"#DIV/0!"}},{"$f":"AVERAGE(WIRKUNGSBEURTEILUNG!$L$29:$L$29)","v":{"$error":"#DIV/0!"}}]
[null,{"$f":"WIRKUNGSBEURTEILUNG!B31","v":"Bodenverbrauch"},null,null,{"$f":"'AUSWERTUNG Zusammenfassung'!$I24","v":{"$error":"#DIV/0!"}},{"$f":"'AUSWERTUNG Zusammenfassung'!$I24","v":{"$error":"#DIV/0!"}},{"$f":"'AUSWERTUNG Zusammenfassung'!$I24","v":{"$error":"#DIV/0!"}},{"$f":"'AUSWERTUNG Zusammenfassung'!$I24","v":{"$error":"#DIV/0!"}},{"$f":"AVERAGE(WIRKUNGSBEURTEILUNG!$L$31:$L$31)","v":{"$error":"#DIV/0!"}}]
[null,{"$f":"WIRKUNGSBEURTEILUNG!B33","v":"Bodenqualität"},null,null,{"$f":"'AUSWERTUNG Zusammenfassung'!$I25","v":{"$error":"#DIV/0!"}},{"$f":"'AUSWERTUNG Zusammenfassung'!$I25","v":{"$error":"#DIV/0!"}},{"$f":"'AUSWERTUNG Zusammenfassung'!$I25","v":{"$error":"#DIV/0!"}},{"$f":"'AUSWERTUNG Zusammenfassung'!$I25","v":{"$error":"#DIV/0!"}},{"$f":"AVERAGE(WIRKUNGSBEURTEILUNG!$L$33:$L$33)","v":{"$error":"#DIV/0!"}}]
[null,{"$f":"WIRKUNGSBEURTEILUNG!B35","v":"Luftqualität"},null,null,{"$f":"'AUSWERTUNG Zusammenfassung'!$I26","v":{"$error":"#DIV/0!"}},{"$f":"'AUSWERTUNG Zusammenfassung'!$I26","v":{"$error":"#DIV/0!"}},{"$f":"'AUSWERTUNG Zusammenfassung'!$I26","v":{"$error":"#DIV/0!"}},{"$f":"'AUSWERTUNG Zusammenfassung'!$I26","v":{"$error":"#DIV/0!"}},{"$f":"AVERAGE(WIRKUNGSBEURTEILUNG!$L$35:$L$35)","v":{"$error":"#DIV/0!"}}]
[null,"WIRTSCHAFT","Ø",{"$f":"AVERAGE(I28:I39)","v":{"$error":"#DIV/0!"}},null,null,null,null,null,null,"Fazit Wirtschaft"]
[null,{"$f":"WIRKUNGSBEURTEILUNG!B40","v":"Einkommen"},null,null,{"$f":"'AUSWERTUNG Zusammenfassung'!$I28","v":{"$error":"#DIV/0!"}},{"$f":"'AUSWERTUNG Zusammenfassung'!$I28","v":{"$error":"#DIV/0!"}},{"$f":"'AUSWERTUNG Zusammenfassung'!$I28","v":{"$error":"#DIV/0!"}},{"$f":"'AUSWERTUNG Zusammenfassung'!$I28","v":{"$error":"#DIV/0!"}},{"$f":"AVERAGE(WIRKUNGSBEURTEILUNG!$L$40:$L$40)","v":{"$error":"#DIV/0!"}},null,{"$f":"WIRKUNGSBEURTEILUNG!E64","v":0},null,null,null,{"$f":"IF(COUNTIF(I28:I39,\">=-2\")<12,\"Fehlende Eingabe\",\"\")","v":"Fehlende Eingabe"}]
[null,{"$f":"WIRKUNGSBEURTEILUNG!B42","v":"Lebenskosten "},null,null,{"$f":"'AUSWERTUNG Zusammenfassung'!$I29","v":{"$error":"#DIV/0!"}},{"$f":"'AUSWERTUNG Zusammenfassung'!$I29","v":{"$error":"#DIV/0!"}},{"$f":"'AUSWERTUNG Zusammenfassung'!$I29","v":{"$error":"#DIV/0!"}},{"$f":"'AUSWERTUNG Zusammenfassung'!$I29","v":{"$error":"#DIV/0!"}},{"$f":"AVERAGE(WIRKUNGSBEURTEILUNG!$L$42:$L$42)","v":{"$error":"#DIV/0!"}},null,null,null,null,null,{"$f":"IF(K28=0,\"Fazit fehlt\",\"\")","v":"Fazit fehlt"}]
[null,{"$f":"WIRKUNGSBEURTEILUNG!B44","v":"Arbeitsmarkt"},null,null,{"$f":"'AUSWERTUNG Zusammenfassung'!$I30","v":{"$error":"#DIV/0!"}},{"$f":"'AUSWERTUNG Zusammenfassung'!$I30","v":{"$error":"#DIV/0!"}},{"$f":"'AUSWERTUNG Zusammenfassung'!$I30","v":{"$error":"#DIV/0!"}},{"$f":"'AUSWERTUNG Zusammenfassung'!$I30","v":{"$error":"#DIV/0!"}},{"$f":"AVERAGE(WIRKUNGSBEURTEILUNG!$L$44:$L$44)","v":{"$error":"#DIV/0!"}}]
[null,{"$f":"WIRKUNGSBEURTEILUNG!B46","v":"Investitionen"},null,null,{"$f":"'AUSWERTUNG Zusammenfassung'!$I31","v":{"$error":"#DIV/0!"}},{"$f":"'AUSWERTUNG Zusammenfassung'!$I31","v":{"$error":"#DIV/0!"}},{"$f":"'AUSWERTUNG Zusammenfassung'!$I31","v":{"$error":"#DIV/0!"}},{"$f":"'AUSWERTUNG Zusammenfassung'!$I31","v":{"$error":"#DIV/0!"}},{"$f":"AVERAGE(WIRKUNGSBEURTEILUNG!$L$46:$L$46)","v":{"$error":"#DIV/0!"}}]
[null,{"$f":"WIRKUNGSBEURTEILUNG!B48","v":"Kostenwahrheit "},null,null,{"$f":"'AUSWERTUNG Zusammenfassung'!$I32","v":{"$error":"#DIV/0!"}},{"$f":"'AUSWERTUNG Zusammenfassung'!$I32","v":{"$error":"#DIV/0!"}},{"$f":"'AUSWERTUNG Zusammenfassung'!$I32","v":{"$error":"#DIV/0!"}},{"$f":"'AUSWERTUNG Zusammenfassung'!$I32","v":{"$error":"#DIV/0!"}},{"$f":"AVERAGE(WIRKUNGSBEURTEILUNG!$L$48:$L$48)","v":{"$error":"#DIV/0!"}}]
[null,{"$f":"WIRKUNGSBEURTEILUNG!B50","v":"Ressourceneffizienz  "},null,null,{"$f":"'AUSWERTUNG Zusammenfassung'!$I33","v":{"$error":"#DIV/0!"}},{"$f":"'AUSWERTUNG Zusammenfassung'!$I33","v":{"$error":"#DIV/0!"}},{"$f":"'AUSWERTUNG Zusammenfassung'!$I33","v":{"$error":"#DIV/0!"}},{"$f":"'AUSWERTUNG Zusammenfassung'!$I33","v":{"$error":"#DIV/0!"}},{"$f":"AVERAGE(WIRKUNGSBEURTEILUNG!$L$50:$L$50)","v":{"$error":"#DIV/0!"}}]
[null,{"$f":"WIRKUNGSBEURTEILUNG!B52","v":"Innovationen"},null,null,{"$f":"'AUSWERTUNG Zusammenfassung'!$I34","v":{"$error":"#DIV/0!"}},{"$f":"'AUSWERTUNG Zusammenfassung'!$I34","v":{"$error":"#DIV/0!"}},{"$f":"'AUSWERTUNG Zusammenfassung'!$I34","v":{"$error":"#DIV/0!"}},{"$f":"'AUSWERTUNG Zusammenfassung'!$I34","v":{"$error":"#DIV/0!"}},{"$f":"AVERAGE(WIRKUNGSBEURTEILUNG!$L$52:$L$52)","v":{"$error":"#DIV/0!"}}]
[null,{"$f":"WIRKUNGSBEURTEILUNG!B54","v":"Wirtschaftsstruktur"},null,null,{"$f":"'AUSWERTUNG Zusammenfassung'!$I35","v":{"$error":"#DIV/0!"}},{"$f":"'AUSWERTUNG Zusammenfassung'!$I35","v":{"$error":"#DIV/0!"}},{"$f":"'AUSWERTUNG Zusammenfassung'!$I35","v":{"$error":"#DIV/0!"}},{"$f":"'AUSWERTUNG Zusammenfassung'!$I35","v":{"$error":"#DIV/0!"}},{"$f":"AVERAGE(WIRKUNGSBEURTEILUNG!$L$54:$L$54)","v":{"$error":"#DIV/0!"}}]
[null,{"$f":"WIRKUNGSBEURTEILUNG!B56","v":"Know-how"},null,null,{"$f":"'AUSWERTUNG Zusammenfassung'!$I36","v":{"$error":"#DIV/0!"}},{"$f":"'AUSWERTUNG Zusammenfassung'!$I36","v":{"$error":"#DIV/0!"}},{"$f":"'AUSWERTUNG Zusammenfassung'!$I36","v":{"$error":"#DIV/0!"}},{"$f":"'AUSWERTUNG Zusammenfassung'!$I36","v":{"$error":"#DIV/0!"}},{"$f":"AVERAGE(WIRKUNGSBEURTEILUNG!$L$56:$L$56)","v":{"$error":"#DIV/0!"}}]
[null,{"$f":"WIRKUNGSBEURTEILUNG!B58","v":"Öffentlicher Haushalt"},null,null,{"$f":"'AUSWERTUNG Zusammenfassung'!$I37","v":{"$error":"#DIV/0!"}},{"$f":"'AUSWERTUNG Zusammenfassung'!$I37","v":{"$error":"#DIV/0!"}},{"$f":"'AUSWERTUNG Zusammenfassung'!$I37","v":{"$error":"#DIV/0!"}},{"$f":"'AUSWERTUNG Zusammenfassung'!$I37","v":{"$error":"#DIV/0!"}},{"$f":"AVERAGE(WIRKUNGSBEURTEILUNG!$L$58:$L$58)","v":{"$error":"#DIV/0!"}}]
[null,{"$f":"WIRKUNGSBEURTEILUNG!B60","v":"Steuern"},null,null,{"$f":"'AUSWERTUNG Zusammenfassung'!$I38","v":{"$error":"#DIV/0!"}},{"$f":"'AUSWERTUNG Zusammenfassung'!$I38","v":{"$error":"#DIV/0!"}},{"$f":"'AUSWERTUNG Zusammenfassung'!$I38","v":{"$error":"#DIV/0!"}},{"$f":"'AUSWERTUNG Zusammenfassung'!$I38","v":{"$error":"#DIV/0!"}},{"$f":"AVERAGE(WIRKUNGSBEURTEILUNG!$L$60:$L$60)","v":{"$error":"#DIV/0!"}}]
[null,{"$f":"WIRKUNGSBEURTEILUNG!B62","v":"Produktion"},null,null,{"$f":"'AUSWERTUNG Zusammenfassung'!$I39","v":{"$error":"#DIV/0!"}},{"$f":"'AUSWERTUNG Zusammenfassung'!$I39","v":{"$error":"#DIV/0!"}},{"$f":"'AUSWERTUNG Zusammenfassung'!$I39","v":{"$error":"#DIV/0!"}},{"$f":"'AUSWERTUNG Zusammenfassung'!$I39","v":{"$error":"#DIV/0!"}},{"$f":"AVERAGE(WIRKUNGSBEURTEILUNG!$L$62:$L$62)","v":{"$error":"#DIV/0!"}}]
[null,"GESELLSCHAFT","Ø",{"$f":"AVERAGE(I41:I52)","v":{"$error":"#DIV/0!"}},null,null,null,null,null,null,"Fazit Gesellschaft"]
[null,{"$f":"WIRKUNGSBEURTEILUNG!B67","v":"Lärm / Wohnqualität"},null,null,{"$f":"'AUSWERTUNG Zusammenfassung'!$I41","v":{"$error":"#DIV/0!"}},{"$f":"'AUSWERTUNG Zusammenfassung'!$I41","v":{"$error":"#DIV/0!"}},{"$f":"'AUSWERTUNG Zusammenfassung'!$I41","v":{"$error":"#DIV/0!"}},{"$f":"'AUSWERTUNG Zusammenfassung'!$I41","v":{"$error":"#DIV/0!"}},{"$f":"AVERAGE(WIRKUNGSBEURTEILUNG!$L$67:$L$67)","v":{"$error":"#DIV/0!"}},null,{"$f":"WIRKUNGSBEURTEILUNG!E91","v":0},null,null,null,{"$f":"IF(COUNTIF(I41:I52,\">=-2\")<12,\"Fehlende Eingabe\",\"\")","v":"Fehlende Eingabe"}]
[null,{"$f":"WIRKUNGSBEURTEILUNG!B69","v":"Mobilität"},null,null,{"$f":"'AUSWERTUNG Zusammenfassung'!$I42","v":{"$error":"#DIV/0!"}},{"$f":"'AUSWERTUNG Zusammenfassung'!$I42","v":{"$error":"#DIV/0!"}},{"$f":"'AUSWERTUNG Zusammenfassung'!$I42","v":{"$error":"#DIV/0!"}},{"$f":"'AUSWERTUNG Zusammenfassung'!$I42","v":{"$error":"#DIV/0!"}},{"$f":"AVERAGE(WIRKUNGSBEURTEILUNG!$L$69:$L$69)","v":{"$error":"#DIV/0!"}},null,null,null,null,null,{"$f":"IF(K41=0,\"Fazit fehlt\",\"\")","v":"Fazit fehlt"}]
[null,{"$f":"WIRKUNGSBEURTEILUNG!B71","v":"Gesundheit"},null,null,{"$f":"'AUSWERTUNG Zusammenfassung'!$I43","v":{"$error":"#DIV/0!"}},{"$f":"'AUSWERTUNG Zusammenfassung'!$I43","v":{"$error":"#DIV/0!"}},{"$f":"'AUSWERTUNG Zusammenfassung'!$I43","v":{"$error":"#DIV/0!"}},{"$f":"'AUSWERTUNG Zusammenfassung'!$I43","v":{"$error":"#DIV/0!"}},{"$f":"AVERAGE(WIRKUNGSBEURTEILUNG!$L$71:$L$71)","v":{"$error":"#DIV/0!"}}]
[null,{"$f":"WIRKUNGSBEURTEILUNG!B73","v":"Sicherheit"},null,null,{"$f":"'AUSWERTUNG Zusammenfassung'!$I44","v":{"$error":"#DIV/0!"}},{"$f":"'AUSWERTUNG Zusammenfassung'!$I44","v":{"$error":"#DIV/0!"}},{"$f":"'AUSWERTUNG Zusammenfassung'!$I44","v":{"$error":"#DIV/0!"}},{"$f":"'AUSWERTUNG Zusammenfassung'!$I44","v":{"$error":"#DIV/0!"}},{"$f":"AVERAGE(WIRKUNGSBEURTEILUNG!$L$73:$L$73)","v":{"$error":"#DIV/0!"}}]
[null,"Einkommens-/Vermögensverteilung",null,null,{"$f":"'AUSWERTUNG Zusammenfassung'!$I45","v":{"$error":"#DIV/0!"}},{"$f":"'AUSWERTUNG Zusammenfassung'!$I45","v":{"$error":"#DIV/0!"}},{"$f":"'AUSWERTUNG Zusammenfassung'!$I45","v":{"$error":"#DIV/0!"}},{"$f":"'AUSWERTUNG Zusammenfassung'!$I45","v":{"$error":"#DIV/0!"}},{"$f":"AVERAGE(WIRKUNGSBEURTEILUNG!$L$75:$L$75)","v":{"$error":"#DIV/0!"}}]
[null,{"$f":"WIRKUNGSBEURTEILUNG!B77","v":"Partizipation"},null,null,{"$f":"'AUSWERTUNG Zusammenfassung'!$I46","v":{"$error":"#DIV/0!"}},{"$f":"'AUSWERTUNG Zusammenfassung'!$I46","v":{"$error":"#DIV/0!"}},{"$f":"'AUSWERTUNG Zusammenfassung'!$I46","v":{"$error":"#DIV/0!"}},{"$f":"'AUSWERTUNG Zusammenfassung'!$I46","v":{"$error":"#DIV/0!"}},{"$f":"AVERAGE(WIRKUNGSBEURTEILUNG!$L$77:$L$77)","v":{"$error":"#DIV/0!"}}]
[null,{"$f":"WIRKUNGSBEURTEILUNG!B79","v":"Kultur und Freizeit"},null,null,{"$f":"'AUSWERTUNG Zusammenfassung'!$I47","v":{"$error":"#DIV/0!"}},{"$f":"'AUSWERTUNG Zusammenfassung'!$I47","v":{"$error":"#DIV/0!"}},{"$f":"'AUSWERTUNG Zusammenfassung'!$I47","v":{"$error":"#DIV/0!"}},{"$f":"'AUSWERTUNG Zusammenfassung'!$I47","v":{"$error":"#DIV/0!"}},{"$f":"AVERAGE(WIRKUNGSBEURTEILUNG!$L$79:$L$79)","v":{"$error":"#DIV/0!"}}]
[null,{"$f":"WIRKUNGSBEURTEILUNG!B81","v":"Bildung"},null,null,{"$f":"'AUSWERTUNG Zusammenfassung'!$I48","v":{"$error":"#DIV/0!"}},{"$f":"'AUSWERTUNG Zusammenfassung'!$I48","v":{"$error":"#DIV/0!"}},{"$f":"'AUSWERTUNG Zusammenfassung'!$I48","v":{"$error":"#DIV/0!"}},{"$f":"'AUSWERTUNG Zusammenfassung'!$I48","v":{"$error":"#DIV/0!"}},{"$f":"AVERAGE(WIRKUNGSBEURTEILUNG!$L$81:$L$81)","v":{"$error":"#DIV/0!"}}]
[null,{"$f":"WIRKUNGSBEURTEILUNG!B83","v":"Soziale Sicherheit"},null,null,{"$f":"'AUSWERTUNG Zusammenfassung'!$I49","v":{"$error":"#DIV/0!"}},{"$f":"'AUSWERTUNG Zusammenfassung'!$I49","v":{"$error":"#DIV/0!"}},{"$f":"'AUSWERTUNG Zusammenfassung'!$I49","v":{"$error":"#DIV/0!"}},{"$f":"'AUSWERTUNG Zusammenfassung'!$I49","v":{"$error":"#DIV/0!"}},{"$f":"AVERAGE(WIRKUNGSBEURTEILUNG!$L$83:$L$83)","v":{"$error":"#DIV/0!"}}]
[null,{"$f":"WIRKUNGSBEURTEILUNG!B85","v":"Integration"},null,null,{"$f":"'AUSWERTUNG Zusammenfassung'!$I50","v":{"$error":"#DIV/0!"}},{"$f":"'AUSWERTUNG Zusammenfassung'!$I50","v":{"$error":"#DIV/0!"}},{"$f":"'AUSWERTUNG Zusammenfassung'!$I50","v":{"$error":"#DIV/0!"}},{"$f":"'AUSWERTUNG Zusammenfassung'!$I50","v":{"$error":"#DIV/0!"}},{"$f":"AVERAGE(WIRKUNGSBEURTEILUNG!$L$85:$L$85)","v":{"$error":"#DIV/0!"}}]
[null,{"$f":"WIRKUNGSBEURTEILUNG!B87","v":"Chancengleichheit"},null,null,{"$f":"'AUSWERTUNG Zusammenfassung'!$I51","v":{"$error":"#DIV/0!"}},{"$f":"'AUSWERTUNG Zusammenfassung'!$I51","v":{"$error":"#DIV/0!"}},{"$f":"'AUSWERTUNG Zusammenfassung'!$I51","v":{"$error":"#DIV/0!"}},{"$f":"'AUSWERTUNG Zusammenfassung'!$I51","v":{"$error":"#DIV/0!"}},{"$f":"AVERAGE(WIRKUNGSBEURTEILUNG!$L$87:$L$87)","v":{"$error":"#DIV/0!"}}]
[null,{"$f":"WIRKUNGSBEURTEILUNG!B89","v":"Überregionale Solidarität"},null,null,{"$f":"'AUSWERTUNG Zusammenfassung'!$I52","v":{"$error":"#DIV/0!"}},{"$f":"'AUSWERTUNG Zusammenfassung'!$I52","v":{"$error":"#DIV/0!"}},{"$f":"'AUSWERTUNG Zusammenfassung'!$I52","v":{"$error":"#DIV/0!"}},{"$f":"'AUSWERTUNG Zusammenfassung'!$I52","v":{"$error":"#DIV/0!"}},{"$f":"AVERAGE(WIRKUNGSBEURTEILUNG!$L$89:$L$89)","v":{"$error":"#DIV/0!"}}]
[]
[null,"Gesamtfazit",null,null,null,null,{"$f":"WIRKUNGSBEURTEILUNG!B94","v":0}]
[null,null,null,null,null,null,null,null,null,null,null,null,null,null,{"$f":"IF(G54=0,\"Gesamtfazit fehlt\",\"\")","v":"Gesamtfazit fehlt"}]
[]
[]
[]
[]
[]
[]
[]
[]
[]
[]
[]
[]
[null,"BEWERTUNG DER WIRKUNGEN",null,null,null,null,"k.A. = keine Antwort"]
[]
[null,"Wirkung ausserhalb des betrachteten Zeithorizontes",null,{"$f":"ZUSATZFRAGEN!C7","v":0},{"$f":"ZUSATZFRAGEN!E7","v":0},{"$f":"ZUSATZFRAGEN!G7","v":0},{"$f":"ZUSATZFRAGEN!I7","v":0},{"$f":"ZUSATZFRAGEN!K6","v":0},null,null,null,null,null,null,{"$f":"IF(COUNTIF(D70:G70,0)=4,\"fehlende Eingabe\",\"\")","v":"fehlende Eingabe"}]
[null,null,null,"neg.","keine","pos.","k.A."]
[]
[null,"Wirkung ausserhalb der räumlichen Systemgrenze",null,{"$f":"ZUSATZFRAGEN!C10","v":0},{"$f":"ZUSATZFRAGEN!E10","v":0},{"$f":"ZUSATZFRAGEN!G10","v":0},{"$f":"ZUSATZFRAGEN!I10","v":0},{"$f":"ZUSATZFRAGEN!K9","v":0},null,null,null,null,null,null,{"$f":"IF(COUNTIF(D73:G73,0)=4,\"fehlende Eingabe\",\"\")","v":"fehlende Eingabe"}]
[null,null,null,"neg.","keine","pos.","k.A."]
[]
[null,"Wirkung auf bestehende Problemlage",null,{"$f":"ZUSATZFRAGEN!C13","v":0},{"$f":"ZUSATZFRAGEN!E13","v":0},{"$f":"ZUSATZFRAGEN!G13","v":0},{"$f":"ZUSATZFRAGEN!I13","v":0},{"$f":"ZUSATZFRAGEN!K12","v":0},null,null,null,null,null,null,{"$f":"IF(COUNTIF(D76:G76,0)=4,\"fehlende Eingabe\",\"\")","v":"fehlende Eingabe"}]
[null,null,null,"neg.","keine","pos.","k.A."]
[]
[null,"Irreversible negative Wirkungen",null,{"$f":"ZUSATZFRAGEN!C16","v":0},null,{"$f":"ZUSATZFRAGEN!G16","v":0},{"$f":"ZUSATZFRAGEN!I16","v":0},{"$f":"ZUSATZFRAGEN!K15","v":0},null,null,null,null,null,null,{"$f":"IF(COUNTIF(D79:G79,0)=3,\"fehlende Eingabe\",\"\")","v":"fehlende Eingabe"}]
[null,null,null,"ja",null,"nein","k.A. "]
[]
[null,"Risiken mit grossem Schadenspotenzial",null,{"$f":"ZUSATZFRAGEN!C19","v":0},null,{"$f":"ZUSATZFRAGEN!G19","v":0},{"$f":"ZUSATZFRAGEN!I19","v":0},{"$f":"ZUSATZFRAGEN!K18","v":0},null,null,null,null,null,null,{"$f":"IF(COUNTIF(D82:G82,0)=3,\"fehlende Eingabe\",\"\")","v":"fehlende Eingabe"}]
[null,null,null,"ja",null,"nein","k.A. "]
[]
[null,"Unsicherheiten in der Beurteilung",null,{"$f":"ZUSATZFRAGEN!C22","v":0},{"$f":"ZUSATZFRAGEN!E22","v":0},{"$f":"ZUSATZFRAGEN!G22","v":0},{"$f":"ZUSATZFRAGEN!I22","v":0},{"$f":"ZUSATZFRAGEN!K21","v":0},null,null,null,null,null,null,{"$f":"IF(COUNTIF(D85:G85,0)=4,\"fehlende Eingabe\",\"\")","v":"fehlende Eingabe"}]
[null,null,"gross",null,"mittel","klein","k.A. "]
[]
[null,"OPTIMIERUNGSPOTENZIAL"]
[]
[null,"Behebung von Schwächen",null,{"$f":"ZUSATZFRAGEN!C27","v":0}]
[]
[]
[]
[null,"Ausbau von Stärken",null,{"$f":"ZUSATZFRAGEN!C28","v":0}]
[]
[]
[]
[null,"Schaffung von Synergien",null,{"$f":"ZUSATZFRAGEN!C29","v":0}]
[]
[]
[null,"VERBLEIBENDE ZIELKONFLIKTE"]
[]
[null,"Zielkonflikte, die trotz Opti- mierung bestehen bleiben:",null,{"$f":"ZUSATZFRAGEN!C33","v":0}]
[]
[]
[]
[]
[null,"WEITERES VORGEHEN"]
[]
[null,"Umsetzung der Resultate:",null,{"$f":"ZUSATZFRAGEN!C37","v":0}]
[]
[]
[]
[null,"Wiederholung / Aktualisierung der NHB:",{"$f":"IF(ZUSATZFRAGEN!C39=\"x\",\"JA\",(IF(ZUSATZFRAGEN!E39=\"x\",\"NEIN\",\" \")))","v":" "},null,{"$f":"ZUSATZFRAGEN!G39","v":0}]
[]
[]
[]
[null,"NHB für nachfolgende Projekte:",{"$f":"IF(ZUSATZFRAGEN!C42=\"x\",\"JA\",(IF(ZUSATZFRAGEN!E42=\"x\",\"NEIN\",\" \")))","v":" "},null,{"$f":"ZUSATZFRAGEN!G41","v":0}]
[]
[]
[]
[]
[null,"Umwelt"]
[null,"Wirtschaft"]
[null,"Gesellschaft"]
[null,"gesamt"]